Workbook

Sheet Resumo
C1: Ministério da Integração Nacional - MI
C2: Companhia de Desenvolvimento dos Vales do São Francisco e do Parnaíba
C3: 6ª Superintendência Regional
A4: OBJETO: | B4: Execução de obras e serviços de engenharia relativos à readequação da captação do sistema de abastecimento de água da sede do Município de Remanso, no estado da Bahia.
A8: DATA BASE: 08/2017
A9: I | B9: SERVIÇOS | C9: Valor
B10: SERVIÇOS PRELIMINARES | C10: R$ | D10: =Serviços!H10 -> 360072.11
B11: ADUTORA DE AGUA BRUTA | C11: R$ | D11: =Serviços!H15+Serviços!H23+Serviços!H41+Serviços!H45+Serviços!H58+Serviços!H60 -> 963943.29
B12: INSTALAÇÕES ELÉTRICAS | C12: R$ | D12: =Plan_Orc_Eletric!G19 -> 130349.84
A14: VALOR TOTAL DOS SERVIÇOS (R$) | D14: =SUM(D10:D13) -> 1454365.24
A16: II | B16: MATERIAIS HIDRÁULICOS | D16: =Materias!I47 -> 930917.84
B17: MATERIAIS ELÉTRICOS | C17: R$ | D17: =Plan_Orc_Eletric!G14 -> 1226743.35
A18: VALOR TOTAL DOS MATERIAIS (R$) | D18: =SUM(D16:D17) -> 2157661.19
A20: VALOR TOTAL DA OBRA (R$) | D20: =D14+D18 -> 3612026.43

Sheet Serviços
C1: Ministério da Integração Nacional - MI
C2: Companhia de Desenvolvimento dos Vales do São Francisco e do Parnaíba
C3: 6ª Superintendência Regional
A4: OBJETO: | B4: Execução de obras e serviços de engenharia relativos à readequação da captação do sistema de abastecimento de água da sede do Município de Remanso, no estado da Bahia.
A7: PLANILHA ORÇAMENTÁRIA - Serviços Adutora e Captação Flutuante
B8: DATABASE:08/2017 | D8: BDI SERVIÇOS: 28.45%
A9: ITEM | B9: COD | C9: DISCRIMINAÇÃO | D9: UNIDADE | E9: QUANT. | F9: V. UNITÁRIO | G9: V. TOTAL | H9: V. TOTAL | I9: V. UNITÁRIO | K9: =L9/100 -> 0.00284532276 | L9: ='BDI Serviços'!D26 -> 0.284532276 | M9: Serviços
A10: 1.0 | B10: SERVIÇOS PRELIMINARES | H10: =SUM(H11:H14) -> 360072.11 | K10: =L10/100 -> 0.002099529532 | L10: ='BDI Materiais'!D26 -> 0.2099529532 | M10: Marteriais
A11: 1.1 | B11: COMPOSIÇÃO | C11: ADMINISTRAÇÃO LOCAL E MANUTENÇÃO DE CANTEIRO DE OBRAS | D11: Unid | E11: 1 | F11: =Composição!G48 -> 202064.9041 | G11: =ROUND(E11*F11,2) -> 202064.9 | H11: =ROUND(E11*F11,2) -> 202064.9 | I11: =Composição!J48 -> 0
A12: 1.2 | B12: 74209/001 | C12: PLACA DE OBRA EM CHAPA DE ACO GALVANIZADO - MODELO CODEVASF-MI | D12: M² | E12: 12 | F12: =I12*(1+$K$9) -> 267.0075672 | G12: 3204.09 | H12: =ROUND(E12*F12,2) -> 3204.09 | I12: 266.25
A13: 1.3 | B13: 93583 | C13: INSTALAÇÃO DE CANTEIRO DE OBRAS | D13: M² | E13: 360 | F13: =I13*(1+$K$9) -> 284.2464783 | G13: 102328.73 | H13: 102328.73 | I13: 283.44
A14: 1.4 | B14: COMPOSIÇÃO | C14: MOBILIZAÇÃO E DESMOBILIZAÇÃO DE EQUIPAMENTOS | D14: Und. | E14: 2 | F14: =Composição!G64 -> 26237.197 | G14: 52474.39 | H14: 52474.39 | I14: =Composição!J64 -> 0
A15: PROTEÇÃO DOS EQUIPAMENTOS DA PONTA DO MOLHE | H15: =SUM(H16:H22) -> 4232.02
A16: 2.1 | B16: 74143/001 | C16: CERCA COM MOUROES DE CONCRETO, RETO, 15X15CM, ESPACAMENTO DE 3M, CRAVADOS 0,5M, ESCORAS DE 10X10CM NOS CANTOS, COM 12 FIOS DE ARAME DE ACO OVALADO 15X17 (PARA DIVISAO DE TERRENOS URBANOS) | D16: M | E16: =Quantitativos!F45 -> 20 | F16: =I16*(1+$K$9) -> 48.07640477 | G16: =ROUND(E16*F16,2) -> 961.53 | H16: =ROUND((G16+(G16*$L$9)),2) -> 1235.12 | I16: 47.94
A17: 2.2 | B17: 10000/ORSE | C17: PORTÃO EM TUBO FERRO GALVANIZADO, COM QUADRO Ø= 2", CANTONEIRA 1"X1" E TELA DE ARAME GALVANIZADO, FIO 12 BWG, MALHA QUADRADA D=1" | D17: M² | E17: 2 | F17: =I17*(1+$K$9) -> 329.5349731 | G17: 659.07 | H17: 846.6 | I17: 328.6
A18: 2.3 | B18: 74154/001 | C18: ESCAVACAO, CARGA E TRANSPORTE DE MATERIAL DE 1A CATEGORIA COM TRATOR SOBRE ESTEIRAS 347 HP E CACAMBA 6M3, DMT 50 A 200M | D18: M3 | E18: =Quantitativos!F48 -> 7.2 | F18: 5.4 | G18: 38.88 | H18: 49.94 | I18: 4.21
A19: 2.4 | B19: 55835 | C19: REATERRO INTERNO (EDIFICACOES) COMPACTADO MANUALMENTE | D19: M3 | E19: =Quantitativos!F49 -> 4.8 | F19: 61.59 | G19: 295.63 | H19: 379.75 | I19: 47.95 | O19: OK
A20: 2.5 | B20: 94962 | C20: CONCRETO MAGRO PARA LASTRO, TRAÇO 1:4,5:4,5 (CIMENTO/ AREIA MÉDIA/ BRITA 1) - PREPARO MECÂNICO COM BETONEIRA 400 L. AF_07/2016 | D20: M3 | E20: =Quantitativos!F46 -> 1.26 | F20: 321.72 | G20: 405.37 | H20: 520.71 | I20: 250.46 | O20: OK
A21: 2.6 | B21: 79498/001 | C21: PINTURA A OLEO BRILHANTE SOBRE SUPERFICIE METALICA, UMA DEMAO INCLUSO UMA DEMAO DE FUNDO ANTICORROSIVO | D21: M² | E21: 2 | F21: 18.46 | G21: 36.92 | H21: 47.42 | I21: 14.37 | O21: OK
A22: 2.7 | B22: 94963 | C22: CONCRETO FCK = 15MPA, TRAÇO 1:3,4:3,5 (CIMENTO/ AREIA MÉDIA/ BRITA 1)- PREPARO MECÂNICO COM BETONEIRA 400 L. AF_07/2016 | D22: M3 | E22: =Quantitativos!F47 -> 2.52 | F22: 356.03 | G22: 897.2 | H22: 1152.48 | I22: 277.18 | O22: OK
A23: CASA DE COMANDO | H23: =SUM(H24:H40) -> 13070.96
A24: 3.1 | B24: 74154/001 | C24: ESCAVACAO, CARGA E TRANSPORTE DE MATERIAL DE 1A CATEGORIA COM TRATOR SOBRE ESTEIRAS 347 HP E CACAMBA 6M3, DMT 50 A 200M | D24: M3 | E24: =Quantitativos!F60 -> 13.925 | F24: 5.4 | G24: =ROUND(E24*F24,2) -> 75.2 | H24: =ROUND(E24*F24,2) -> 75.2 | I24: 4.21 | O24: OK
A25: 3.2 | B25: 55835 | C25: REATERRO INTERNO (EDIFICACOES) COMPACTADO MANUALMENTE | D25: M3 | E25: =Quantitativos!F61 -> 7.78 | F25: =F19 -> 61.59 | G25: 479.17 | H25: 479.17 | I25: 47.95 | O25: OK
A26: 3.3 | B26: 94962 | C26: CONCRETO MAGRO PARA LASTRO, TRAÇO 1:4,5:4,5 (CIMENTO/ AREIA MÉDIA/ BRITA 1) - PREPARO MECÂNICO COM BETONEIRA 400 L. AF_07/2016 | D26: M3 | E26: =Quantitativos!F58 -> 0.87625 | F26: =F20 -> 321.72 | G26: 281.91 | H26: 281.91 | I26: 250.46 | O26: OK
A27: 3.4 | B27: 94964 | C27: CONCRETO FCK = 20MPA, TRAÇO 1:2,7:3 (CIMENTO/ AREIA MÉDIA/ BRITA 1) -PREPARO MECÂNICO COM BETONEIRA 400 L. AF_07/2016 | D27: M3 | E27: =Quantitativos!F59 -> 1.1025 | F27: 391.42 | G27: 431.54 | H27: 431.54 | I27: 304.73 | O27: OK
A28: 3.5 | B28: 73361 | C28: CONCRETO CICLOPICO FCK=10MPA 30% PEDRA DE MAO INCLUSIVE LANCAMENTO | D28: M³ | E28: =Quantitativos!F62 -> 3.38 | F28: 436.31 | G28: 1474.73 | H28: =ROUND(E28*F28,2) -> 1474.73 | I28: 339.68 | O28: OK
A29: 3.6 | B29: 74141/001 | C29: LAJE PRE-MOLD BETA 11 P/1KN/M2 VAOS 4,40M/INCL VIGOTAS TIJOLOS ARMADURA NEGATIVA CAPEAMENTO 3CM E OBRA.CONCRETO 20MPA ESCORAMENTO MATERIAL E MAO DE OBRA. | D29: M² | E29: =Quantitativos!F71 -> 10.8 | F29: 89.74 | G29: 969.19 | H29: 969.19 | I29: 69.87 | O29: OK
A30: 3.7 | B30: 74238/002 | C30: PORTAO EM TELA ARAME GALVANIZADO N.12 MALHA 2" E MOLDURA EM TUBOS DE ACO COM DUAS FOLHAS DE ABRIR, INCLUSO FERRAGENS | D30: M² | E30: =Quantitativos!F67 -> 2.94 | F30: 1234.69 | G30: 3629.99 | H30: 3629.99 | I30: 961.23 | O30: OK
A31: 3.8 | B31: 79498/001 | C31: PINTURA A OLEO BRILHANTE SOBRE SUPERFICIE METALICA, UMA DEMAO INCLUSO UMA DEMAO DE FUNDO ANTICORROSIVO | D31: M² | E31: 2.94 | F31: 18.45 | G31: 54.24 | H31: 54.24 | I31: 14.37 | O31: OK
A32: 3.9 | B32: 89460 | C32: ALVENARIA DE BLOCOS DE CONCRETO ESTRUTURAL 14X19X39 CM, (ESPESSURA 14 CM) FBK = 14,0 MPA, PARA PAREDES COM ÁREA LÍQUIDA MAIOR OU IGUAL A 6M², COM VÃOS, UTILIZANDO PALHETA. AF_12/2014 | D32: M² | E32: =Quantitativos!F57 -> 30.14 | F32: 71.27 | G32: 2148.08 | H32: 2148.08 | I32: 55.49 | O32: OK
A33: 3.10 | B33: 74077/002 | C33: LOCACAO CONVENCIONAL DE OBRA, ATRAVÉS DE GABARITO DE TABUAS CORRIDAS PONTALETADAS, COM REAPROVEITAMENTO DE 10 VEZES. | D33: M² | E33: =Quantitativos!F55 -> 10.5 | F33: 5.38 | G33: 56.49 | H33: 56.49 | I33: 4.19 | O33: OK
A34: 3.11 | B34: 95465 | C34: COBOGO CERAMICO (ELEMENTO VAZADO), 9X20X20CM, ASSENTADO COM ARGAMASSA TRACO 1:4 DE CIMENTO E AREIA | D34: M² | E34: =Quantitativos!F68 -> 0.72 | F34: 147.69 | G34: =ROUND(E34*F34,2) -> 106.34 | H34: 106.34 | I34: 114.98 | O34: OK
A35: 3.12 | B35: 93205 | C35: CINTA DE AMARRAÇÃO DE ALVENARIA MOLDADA IN LOCO COM UTILIZAÇÃO DE BLOCOS CANALETA. AF_03/2016 | D35: m | E35: =Quantitativos!F63 -> 13 | F35: 28.51 | G35: 370.63 | H35: 370.63 | I35: 22.2 | O35: OK
A36: 3.13 | B36: 93184 | C36: VERGA PRÉ-MOLDADA PARA PORTAS COM ATÉ 1,5 M DE VÃO. AF_03/2016 | D36: m | E36: 7.8 | F36: 27.24 | G36: =ROUND(E36*F36,2) -> 212.47 | H36: 212.47 | I36: 21.21 | O36: OK
A37: 3.14 | B37: 87905 | C37: CHAPISCO APLICADO EM ALVENARIA (COM PRESENÇA DE VÃOS) E ESTRUTURAS DE CONCRETO DE FACHADA, COM COLHER DE PEDREIRO. ARGAMASSA TRAÇO 1:3 COM PREPARO EM BETONEIRA 400L. AF_06/2014 | D37: M² | E37: =Quantitativos!F64 -> 65.08 | F37: 8 | G37: 520.64 | H37: 520.64 | I37: 6.23 | O37: OK
A38: 3.15 | B38: 87547 | C38: MASSA ÚNICA, PARA RECEBIMENTO DE PINTURA, EM ARGAMASSA TRAÇO 1:2:8, PREPARO MECÂNICO COM BETONEIRA 400L, APLICADA MANUALMENTE EM FACES INTERNAS DE PAREDES, ESPESSURA DE 10MM, COM EXECUÇÃO DE TALISCAS. | D38: M² | E38: =Quantitativos!F65 -> 65.08 | F38: 22.85 | G38: 1487.08 | H38: 1487.08 | I38: 17.79 | O38: OK
A39: 3.16 | B39: 88487 | C39: APLICAÇÃO MANUAL DE PINTURA COM TINTA LÁTEX PVA EM PAREDES, DUAS DEMÃO S. AF_06/2014 | D39: M² | E39: =Quantitativos!F66 -> 65.08 | F39: 9.42 | G39: 613.05 | H39: 613.05 | I39: 7.34 | O39: OK
A40: 3.17 | B40: 94963 | C40: CONCRETO FCK = 15MPA, TRAÇO 1:3,4:3,5 (CIMENTO/ AREIA MÉDIA/ BRITA 1)- PREPARO MECÂNICO COM BETONEIRA 400 L. AF_07/2016 - Para a calçada | D40: M3 | E40: =Quantitativos!F70 -> 0.45 | F40: =F22 -> 356.03 | G40: 160.21 | H40: 160.21 | I40: 277.18 | O40: OK
B41: ENVELOPAMENTO DAS TUBULAÇÕES E CAIXA DE INSPEÇÃO DA REDE ELÉTRICA | H41: =SUM(H42:H44) -> 10647.47
A42: 4.1 | B42: 74154/001 | C42: ESCAVACAO, CARGA E TRANSPORTE DE MATERIAL DE 1A CATEGORIA COM TRATOR SOBRE ESTEIRAS 347 HP E CACAMBA 6M3, DMT 50 A 200M | D42: M3 | E42: =Quantitativos!F7 -> 4.2 | F42: =F18 -> 5.4 | G42: 22.68 | H42: =ROUND((G42+(G42*$L$9)),2) -> 29.13 | I42: 4.21 | O42: OK
A43: 4.2 | B43: COMPOSIÇÃO | C43: EXECUÇÃO DE ENVELOPAMENTO DE TUBULAÇÃO EM CONCRETO SIMPLES,INCLUIDO PREPARO MECANICO, LANÇAMENTO E ADENSAMENTO. | D43: m³ | E43: =Quantitativos!F9 -> 4.00375 | F43: 999.94 | G43: 4003.51 | H43: =ROUND((G43+(G43*$L$9)),2) -> 5142.64 | I43: =Composição!J17 -> 0 | O43: OK
A44: 4.3 | B44: 74166/002 | C44: CAIXA DE INSPECAO EM ANEL DE CONCRETO PRE MOLDADO, COM 950MM DE ALTURA TOTAL. ANEIS COM ESP=50MM, DIAM.=600MM. EXCLUSIVE TAMPAO E ESCAVACAO - FORNECIMENTO E INSTALACAO | D44: un | E44: 10 | F44: 426.28 | G44: 4262.8 | H44: =ROUND((G44+(G44*$L$9)),2) -> 5475.7 | I44: 331.87 | O44: OK
B45: ASSENTAMENTO DAS TUBULAÇÕES, DA REDE ELÉTRICA, VÁLVULAS E REGISTROS | H45: =SUM(H46:H57) -> 530120.52
A46: 5.1 | B46: 85323 | C46: LOCACAO E NIVELAMENTO DE EMISSARIO/REDE COLETORA COM AUXILIO DE EQUIPAMENTO TOPOGRAFICO | D46: M | E46: =Quantitativos!F13+Quantitativos!F25 -> 8700 | F46: 3.16 | G46: 27492 | H46: =ROUND((G46+(G46*$L$9)),2) -> 35314.36 | I46: 2.46 | O46: OK
A47: 5.2 | B47: 90091 | C47: ESCAVAÇÃO MECANIZADA DE VALA COM PROF. ATÉ 1,5 M(MÉDIA ENTRE MONTANTE E JUSANTE/UMA COMPOSIÇÃO POR TRECHO), COM ESCAVADEIRA HIDRÁULICA (0,8 M3/111 HP), LARG. DE 1,5M A 2,5 M, EM SOLO DE 1A CATEGORIA, LOCAIS COM BAIXO NÍVEL DE INTERFERÊNCIA. AF_01/2015 | D47: M3 | E47: 4030.17 | F47: 6.61 | G47: 26639.42 | H47: 34219.19 | I47: 5.14 | O47: OK
A48: 5.3 | B48: 72915 | C48: ESCAVACAO MECANICA DE VALA EM MATERIAL DE 2A. CATEGORIA ATE 2 M DE PROFUNDIDADE COM UTILIZACAO DE ESCAVADEIRA HIDRAULICA | D48: M3 | E48: 3358.95 | F48: 12.44 | G48: 41785.34 | H48: 53674.62 | I48: 9.69 | O48: OK
A49: 5.4 | B49: 04626 ORSE | C49: ESCAVAÇÃO, CARGA E TRANSPORTE DE MATERIAL DE 3ª CATEGORIA, COM PERFURATRIZ SOBRE ESTEIRAS, DMT 1001 A 1200M | D49: M3 | E49: =Quantitativos!F22+Quantitativos!F34 -> 671.232 | F49: 48.94 | G49: 32850.09 | H49: 42197 | I49: 37.44 | O49: OK
A50: 5.5 | B50: 93367 | C50: REATERRO MECANIZADO DE VALA COM ESCAVADEIRA HIDRÁULICA (CAPACIDADE DA CAÇAMBA: 0,8 M³ / POTÊNCIA: 111 HP), LARGURA DE 1,5 A 2,5 M, PROFUNDIDADE ATÉ 1,5 M, COM SOLO (SEM SUBSTITUIÇÃO) DE 1ª CATEGORIA EM LOCAIS COM BAIXO NÍVEL DE INTERFERÊNCIA. AF_04/2016 | D50: M3 | E50: =Quantitativos!F18+Quantitativos!F30 -> 6733.17225 | F50: 17.3 | G50: 116483.88 | H50: 149627.3 | I50: 13.47 | O50: OK
A51: 5.6 | B51: 2526/ORSE | C51: MATERIAL DE JAZIDA OU AREIA FINA PARA ATERRO, INCLUSIVE AQUISIÇÃO E ESCAVAÇÃO NA JAZIDA, EXCLUSIVE TRANSPORTE | D51: M3 | E51: 671.23 | F51: 13.42 | G51: 9007.91 | H51: 11570.95 | I51: 15.26 | O51: OK
A52: 5.7 | B52: 03212/ORSE | C52: COLCHÃO DE AREIA | D52: M3 | E52: =Quantitativos!F19+Quantitativos!F31 -> 616 | F52: 104.84 | G52: 64581.44 | H52: 82956.94 | I52: 90.04 | O52: OK
A53: 5.8 | B53: 73888/009 | C53: ASSENTAMENTO TUBO PVC COM JUNTA ELASTICA, ATÉ DN 400 MM - (OU RPVC, OU PVCDEFOFO, OU PRFV) - PARA AGUA. | D53: M | E53: =Quantitativos!F13+Quantitativos!F25 -> 8700 | F53: 9.17 | G53: 79779 | H53: 102478.7 | I53: 7.14 | O53: OK
A54: 5.9 | B54: 73884/001 | C54: INSTALAÇÃO DE VÁLVULAS OU REGISTROS COM JUNTA FLANGEADA - DN 50 | D54: un | E54: 3 | F54: 63.7 | G54: 191.1 | H54: 245.47 | I54: 49.59 | O54: OK
A55: 5.10 | B55: 73884/003 | C55: INSTALAÇÃO DE VÁLVULAS OU REGISTROS COM JUNTA FLANGEADA - DN 100 | D55: un | E55: 6 | F55: 123.77 | G55: 742.62 | H55: 953.92 | I55: 96.36 | O55: OK
A56: 5.11 | B56: 73884/005 | C56: INSTALAÇÃO DE VÁLVULAS OU REGISTROS COM JUNTA FLANGEADA - DN 200 | D56: un | E56: 6 | F56: 624.43 | G56: 3746.58 | H56: 4812.6 | I56: 486.13 | O56: OK
A57: 5.12 | B57: 73588 | C57: TRANSPORTE DE TUBOS DE PVC DN 300 | D57: M | E57: 8700 | F57: 1.08 | G57: 9396 | H57: 12069.47 | I57: 0.84 | O57: OK
B58: BLOCO DE ANCORAGEM | H58: =SUM(H59:H59) -> 20579.94
A59: 6.1 | B59: 94963 | C59: CONCRETO FCK = 15MPA, TRAÇO 1:3,4:3,5 (CIMENTO/ AREIA MÉDIA/ BRITA 1)- PREPARO MECÂNICO COM BETONEIRA 400 L. AF_07/2016 | D59: M3 | E59: 45 | F59: =F22 -> 356.03 | G59: 16021.35 | H59: =ROUND((G59+(G59*$L$9)),2) -> 20579.94 | I59: 277.18 | O59: OK
B60: CONJUNTO MOTOR BOMBA E FLUTUANTE | H60: =H61 -> 385292.38
A61: 7.1 | B61: Composição | C61: CAPTAÇÃO FLUTUANTE - PROJETO, FONECIMENTO E INSTALAÇÃO | D61: un | E61: 1 | F61: =Comp_Flutuante!G26 -> 385292.38 | G61: =ROUND(E61*F61,2) -> 385292.38 | H61: =G61 -> 385292.38 | I61: =Comp_Flutuante!J26 -> 0
A63: TOTAL ITEM - Adutora e infraestrutura - Serviços | H63: =SUM(H60,H58,H45,H41,H23,H15,H10) -> 1324015.4

Sheet Materias
C1: Ministério da Integração Nacional - MI
C2: Companhia de Desenvolvimento dos Vales do São Francisco e do Parnaíba
C3: 6ª Superintendência Regional | L3: 0.0021 | M3: 0.21 | N3: Marteriais
A4: OBJETO: | B4: Execução de obras e serviços de engenharia relativos à readequação da captação do sistema de abastecimento de água da sede do Município de Remanso, no estado da Bahia.
C7: DATABASE:08/2017 | H7: BDI MATERIAIS: 21% | I7: BDI MATERIAIS:21%
A8: PLANILHA ORÇAMENTÁRIA -Materiais - Adutora e Captação Flutuante
A9: ITEM | B9: COD | C9: DISCRIMINAÇÃO | D9: UNIDADE | E9: QUANT. | F9: V. UNITÁRIO | H9: V. TOTAL | I9: V. TOTAL
A10: 1.0 | B10: Tubulação | I10: =SUM(I11:I11) -> 875331.36
A11: 1.1 | B11: SINAPI 9827 | C11: TUBO PVC DEFOFO, JEI, 1 MPA, DN 300 MM, PARA REDE DE AGUA (NBR 7665) | D11: M | E11: 4932 | F11: 177.48 | G11: 138.16 | H11: =ROUND(E11*F11,2) -> 875331.36 | I11: =H11 -> 875331.36
A12: 2.0 | B12: OUTRAS CONEXÕES | I12: =SUM(I13:I13) -> 1255.98
A13: 2.1 | B13: COTAÇÃO | C13: CURVA BB FF K7 11,15º 300 mm PN 10 | D13: pç | E13: 2 | F13: =G13*(1+$M$3) -> 627.99 | G13: 519 | H13: 1255.98 | I13: =H13 -> 1255.98
A14: 3.0 | B14: Ventosas | I14: =SUM(I15:I25) -> 25794.21
A15: 3.1 | B15: COTAÇÃO | C15: COLAR DE TOMADA FLANGEADO PN 10 PARA TUBOS FF 300 X 200 MM COM PARAFUSOS E ANÉIS. | D15: pç | E15: 1 | F15: =G15*(1+$M$3) -> 363 | G15: 300 | H15: =ROUND(E15*F15,2) -> 363 | I15: =H15 -> 363
A16: 3.2 | B16: COTAÇÃO | C16: COLAR DE TOMADA FLANGEADO PN 10 PARA TUBOS FF 300 X 100 MM COM PARAFUSOS E ANÉIS. | D16: pç | E16: =E23 -> 3 | F16: =G16*(1+$M$3) -> 423.5 | G16: 350 | H16: 1270.5 | I16: =H16 -> 1270.5
A17: 3.3 | B17: COTAÇÃO | C17: COLAR DE TOMADA FLANGEADO PN 10 PARA TUBOS FF 300 X 50 MM COM PARAFUSOS E ANÉIS. | D17: pç | E17: 8 | F17: 484 | G17: 400 | H17: 3872 | I17: 3872
A18: 3.5 | B18: COTAÇÃO | C18: FLANGE CEGO FF 200 MM PN 10 COM ANEL E PARAFUSOS. | D18: pç | E18: 1 | F18: 177.87 | G18: 147 | H18: 177.87 | I18: 177.87
A19: 3.6 | B19: COTAÇÃO | C19: FLANGE CEGO FF 100 MM PN 10 COM ANEL E PARAFUSOS. | D19: pç | E19: 3 | F19: 99.22 | G19: 82 | H19: 297.66 | I19: 297.66
A20: 3.7 | B20: COTAÇÃO | C20: FLANGE CEGO FF 50 MM PN 10 COM ANEL E PARAFUSOS. | D20: pç | E20: 8 | F20: 60.5 | G20: 50 | H20: 484 | I20: 484
A21: 3.8 | B21: COTAÇÃO | C21: TAMPÃO PVC 2" FLANGE PVC, ROSCAVEL, SEXTAVADO, SEM FUROS, 2" | D21: pç | E21: 2 | F21: 60.5 | G21: 50 | H21: 121 | I21: 121
A22: 3.9 | B22: Cotação | C22: VENTOSA TRÍPLICE FUNÇÃO, PN 25, DIAM = 50MM | D22: pç | E22: 8 | F22: 830.06 | G22: 686 | H22: 6640.48 | I22: 6640.48
A23: 3.10 | B23: 06432/ORSE | C23: VENTOSA TRÍPLICE FUNÇÃO, PN 16, DIAM = 100MM | D23: pç | E23: 3 | F23: 2143.6481 | G23: 1771.61 | H23: 6430.94 | I23: 6430.94
A24: 3.11 | B24: 06434/ORSE | C24: VENTOSA TRÍPLICE FUNÇÃO, PN 16, DIAM = 200MM | D24: pç | E24: 1 | F24: 4684.757 | G24: 3871.7 | H24: 4684.76 | I24: 4684.76
A25: 3.12 | B25: COTAÇÃO | C25: VENTOSA PLÁSTICA DE TRÍPLICE EFEITO, RESISTÊNCIA A PRESSÃO DE MÍNIMA PN 10, ROSCÁVEL, 2" COM FLUTUADOR CILÍNDRICO, PARA TENSÃO DE - 2 MCA. | D25: pc | E25: 2 | F25: 726 | G25: 600 | H25: 1452 | I25: 1452
A26: 4.0 | B26: CONJUNTO MOTO-BOMBA | I26: =SUM(I27:I27) -> 46.72
A27: 4.1 | B27: Sinapi 00007588 | C27: AUTOMATICO DE BOIA INFERIOR 10A/250V | D27: pç | E27: 1 | F27: 46.7181 | G27: 38.61 | H27: 46.72 | I27: =H27 -> 46.72
A28: 5.0 | B28: LIGAÇÃO DE PRESSÃO E OUTRAS CONEXÕES | I28: =SUM(I29:I45) -> 28489.57
A29: 5.1 | B29: COTAÇÃO | C29: TÊ COM FLANGE FF, PN 10, 200X100 MM | D29: pç | E29: 1 | F29: 701.8 | G29: 580 | H29: =ROUND(E29*F29,2) -> 701.8 | I29: =H29 -> 701.8
A30: 5.2 | B30: COTAÇÃO | C30: REGISTRO DE GAVETA FLANGEADO PN 10, (200MM), COM PARAFUSO, FF, NODULAR | D30: pç | E30: 1 | F30: 2395.8 | G30: 1980 | H30: 2395.8 | I30: =H30 -> 2395.8
A31: 5.3 | B31: COTAÇÃO | C31: ANEL PARA FLANGES 200MM | D31: pç | E31: 4 | F31: 22.99 | G31: 19 | H31: 91.96 | I31: 91.96
A32: 5.4 | B32: COTAÇÃO | C32: REDUÇÃO FLANGEADA CONCÊNTRICA FF NODULAR PN 10 200X150, COM PARAFUSOS | D32: pç | E32: 1 | F32: 1099.89 | G32: 909 | H32: 1099.89 | I32: 1099.89
A33: 5.5 | B33: COTAÇÃO | C33: ANEL PARA FLANGES 150MM | D33: pç | E33: 4 | F33: 19.36 | G33: 16 | H33: 77.44 | I33: 77.44
A34: 5.6 | B34: SINAPI/0003270 | C34: CONTRAFLANGE (OU FLANGE CEGO SEXTAVADO) 150 MM | D34: pç | E34: 2 | F34: 198.319 | G34: 163.9 | H34: 396.64 | I34: 396.64
A35: 5.7 | B35: SINAPI/0004185 | C35: NIPLE DE FERRO GALVANIZADO, COM ROSCA BSP, DE 6" | D35: pç | E35: 2 | F35: 309.3365 | G35: 255.65 | H35: 618.67 | I35: 618.67
A36: 5.8 | B36: COTAÇÃO | C36: VÁLVULA METAL SUSTENTADIORA DE PRESSÃO(PS) / OPERADORA DE BOMBA(BO), FF NODULAR, COM PILOTO DE 3 VIAS, TOMADA POLIFLOW A JUSANTE A A MONTANTE, 6" ROSCÁVEL, PN 16. | D36: pç | E36: 1 | F36: 6776 | G36: 5600 | H36: 6776 | I36: 6776
A37: 5.9 | B37: COTAÇÃO | C37: HIDRÔMETRO TANGENCIAL METÁLICO, PN 10, 6" , FLANGEADO, COM CONTADOR DE PULSOS, ANÉIS E PARAFUSOS. | D37: pç | E37: 1 | F37: 7780.3 | G37: 6430 | H37: 7780.3 | I37: 7780.3
A38: 5.10 | B38: COTAÇÃO | C38: REDUÇÃO FLANGEADA CONCÊNTRICA FF NODULAR PN 10 300X150, COM PARAFUSOS | D38: pç | E38: 1 | F38: 1277.76 | G38: 1056 | H38: 1277.76 | I38: 1277.76
A39: 5.11 | B39: COTAÇÃO | C39: TOCO FLANGEADO 200M | D39: pç | E39: 2 | F39: 2783 | G39: 2300 | H39: 5566 | I39: 5566
A40: 5.12 | B40: COTAÇÃO | C40: COLAR DE TOMADA FLAGEADO PN 10 PARA TUBOS FF 200 X 100 COM PARAFUSOS E ANÍES | D40: pç | E40: 1 | F40: 641.3 | G40: 530 | H40: 641.3 | I40: 641.3
A41: 5.13 | B41: COTAÇÃO | C41: ANEL PARA FLANGES 300 MM | D41: pç | E41: 2 | F41: 10.89 | G41: 9 | H41: =ROUND(E41*F41,2) -> 21.78 | I41: 21.78
A42: 5.14 | B42: COTAÇÃO | C42: EXTEMIDADE FLANGE X BOLSA 300 MM PN 10, COM PARAFUSOS, ARRUELAS E PORCAS. | D42: pç | E42: 1 | F42: 665.5 | G42: 550 | H42: 665.5 | I42: 665.5
A43: 5.15 | B43: COTAÇÃO | C43: ANEL 80 MM PARA FLANGE . | D43: pç | E43: 1 | F43: 6.05 | G43: 5 | H43: 6.05 | I43: 6.05
A44: 5.16 | B44: COTAÇÃO | C44: CRIVO FLANGEADO FF NODULAR, PN 10, SEM VÁLVULA DE PÉ 80 MM COM PARAFUSOS, ARRUELAS E PORCAS. | D44: pç | E44: 1 | F44: 363 | G44: 300 | H44: 363 | I44: 363
A45: 5.17 | B45: COTAÇÃO | C45: ANEL PARA FLANGES 100 MM | D45: pç | E45: 2 | F45: 4.84 | G45: 4 | H45: 9.68 | I45: 9.68
A47: TOTAL ITEM 02 - Adutora e infraestrutura - Serviços | I47: =SUM(I26,I14,I12,I10,I28) -> 930917.84

Sheet Plan_Orc_Eletric
C1: Ministério da Integração Nacional - MI
C2: Companhia de Desenvolvimento dos Vales do São Francisco e do Parnaíba
C3: 6ª Superintendência Regional
A5: OBJETO: | B5: Execução de obras e serviços de engenharia relativos à readequação da captação do sistema de abastecimento de água da sede do Município de Remanso, no estado da Bahia.
B6: DATABASE: 08/2017
A7: PLANILHA ORÇAMENTÁRIA - Serviços Elétricos
A9: ITEM | B9: CÓDIGO | C9: DETALHAMENTO DOS SERVIÇOS E MATERIAIS | D9: UNID. | E9: QUANT. | F9: PREÇOS R$
F10: VALOR UNIT. | G10: VALOR TOTAL
A12: ITEM 01: INSTALAÇÕES ELÉTRICAS
A14: 1.1 | B14: FORNECIMENTOS - INSTALAÇÕES ELÉTRICAS | G14: =ROUND(SUM(G15:G17),2) -> 1226743.35
A15: 1.1.1 | B15: Composição | C15: FORNECIMENTO DOS MATERIAIS E EQUIPAMENTOS PARA A INTERLIGAÇÃO DA REDE DE MÉDIA TENSÃO EXISTENTE EM 13.8KV E O RAMAL DE ENTRADA, O QUAL CONTEMPLA EXTENSÃO DA REDE DE MÉDIA TENSÃO, CUBÍCULO DE MEDIÇÃO, DISJUNTOR, CHAVE SECCIONADORA EM 13.8KV E DEMAIS ACESSÓRIOS NECESSÁRIOS. | D15: unid. | E15: 1 | F15: =Compos_Eletric!F92 -> 138535.96 | G15: =ROUND($E15*$F15,2) -> 138535.96
A16: 1.1.2 | B16: Composição | C16: FORNECIMENTO DOS MATERIAIS E EQUIPAMENTOS PARA A INTERLIGAÇÃO DO CUBÍCULO DE MÉDIA TENSÃO EM 13.8KV E O PRIMÁRIO DO TRANSFORMADOR DE 112,5KVA. | D16: unid. | E16: 1 | F16: =Compos_Eletric!F130 -> 1073601.52 | G16: =ROUND($E16*$F16,2) -> 1073601.52
A17: 1.1.3 | B17: Composição | C17: FORNECIMENTO DOS MATERIAIS E EQUIPAMENTOS PARA A INTERLIGAÇÃO DO SECUNDÁRIO DO TRANSFORMADOR DE 112,5KVA AO PAINEL GERAL DE BAIXA TENSÃO (QGBT) E COJUNTOS MOTOBOMBAS - O QUAL CONTEMPLA UM PAINEL MODULAR COM DISJUNTOR PRINCIPAL, OS ACIONAMENTOS E PROTEÇÕES DOS CONJUNTOS MOTOBOMBAS E A INTERLIGAÇÃO ELÉTRICA AOS MOTORES | D17: unid. | E17: 1 | F17: =Compos_Eletric!F182 -> 14605.87 | G17: =ROUND($E17*$F17,2) -> 14605.87
A19: 2.2 | B19: SERVIÇOS - INSTALAÇÕES ELÉTRICAS | G19: =ROUND(SUM(G20:G22),2) -> 130349.84
A20: 2.2.1 | B20: Composição | C20: SERVIÇOS DE SUPERVISÃO DE MONTAGEM E INSTALAÇÃO DA EXTENSÃO DE REDE DE MÉDIA TENSÃO, CUBÍCULOS, SUBESTAÇÃO EM 13.8 KV E INTERLIGAÇÃO AO CCM DO CONJUNTO MOTOBOMBA, INCLUINDO A OPERAÇÃO ASSSISTIDA POR NO MÍNIMO 10 DIAS | D20: unid. | E20: 1 | F20: =Compos_Eletric!F205 -> 69339.95 | G20: =ROUND($E20*$F20,2) -> 69339.95
A21: 2.2.2 | B21: Composição | C21: PROJETO EXECUTIVO, COM DESCRIÇÃO E DETALHAMENTO DO PROJETO ELÉTRICO EXTENSÃO DE REDE DE MÉDIA TENSÃO, DE FORÇA, COMANDO E PROTEÇÃO; DIAGRAMA UNIFILAR DE AT/BT; LAYOUT DE MONTAGEM; FOLHAS DE DADOS DOS COMPONENTES E MEMORIAL DE CÁLCULO | D21: unid. | E21: 1 | F21: =Compos_Eletric!F227 -> 29873.34 | G21: =ROUND($E21*$F21,2) -> 29873.34
A22: 2.2.3 | B22: Composição | C22: TRANSPORTE DE MATERIAIS E EQUIPAMENTOS DOS SERVIÇOS ELÉTRICOS | D22: unid. | E22: 1 | F22: =Compos_Eletric!F249 -> 31136.55 | G22: =ROUND($E22*$F22,2) -> 31136.55
H23: =UPPER(C23) -> 
A24: TOTAL ITEM 02 - INSTALAÇÕES ELÉTRICAS | G24: =ROUND(SUM(G14+G19),2) -> 1357093.19
A32: .

Sheet Comp_Flutuante
C1: Ministério da Integração Nacional - MI
C2: Companhia de Desenvolvimento dos Vales do São Francisco e do Parnaíba
C3: 6ª Superintendência Regional
A4: Objeto: Execução de obras e serviços de engenharia relativos à readequação da captação do sistema de abastecimento de água da sede do Município de Remanso, no estado da Bahia.
A6: COMPOSIÇÃO ORÇAMENTÁRIA - Captação Flutuante
F7: Valor Mediano com BDI
A8: ITEM 7.1 | B8: COD | C8: DESCRIÇÃO | D8: Quant. | E8: Unid. | F8: Preço unit. R$ | G8: Preço total R$ | H8: Materiais | I8: Serviços
C9: Conjunto motobomba flutuante com as seguintes características: | H9: 1.21 | I9: 1.2845
A10: 7.1.1 | B10: Cotação | C10: PARA ATENDER UMA VAZÃO DE 252M³/H EM 44MCA, MOTOBOMBA CENTRÍFUGA RADIAL, MONOBLOCO, SISTEMA BACK PULL OUT MODELO AFG 125-315 DE SUCÇÃO VERTICAL, RECALQUE NA HORIZONTAL, CARCAÇA ESPIRAL, ADAPTADOR EM FERRO FUNDIDO, COM ANEIS DE DESGASTE SUBSTITUÍVEIS, ROTOR E ANÉIS DE DESGASTE EM BRONZE E BUCHA PROTETORA DO EIXO E PARAFUSO DO ROTOR EM AÇO INOX. SELO MECÂNICO T21 2.1/4" SIL/SIL/VITON. MOTOR ELÉTRICO (POTÊNCIA MÍNIMA DE 60 HP- CV) 45 KW,1750RPM, 4POLOS, FREQUÊNCIA 60HZ TENSÃO NOMINAL 220/380/440 V, FORMA CONSTRUTIVA TFVE, V18T, PROTEÇÃO IPW55, CARCAÇA 225S/M, FATOR DE SERVIÇO 1.15. FLUTUANTE CONSTRUÍDO EM FIBRA DE VIDRO, HERMETICAMENTE VEDADO, COM SAÍDA FLANGEADA 8” NORMA ANSI B16.5 COM RALO NA SUCÇÃO, EQUIPADO COM CRIVO, TAMPA DE PROTEÇÃO DO MOTOR, CHAPÉU EM FIBRA DE VIDRO. | D10: 1 | E10: CJ | F10: 62700 | G10: =ROUND(F10*D10*$I$9,2) -> 80538.15
C11: Painel CCM com chave softstarter 130A/380V
A12: 7.1.2 | B12: Cotação | C12: CCM CONTENDO 01 CHAVE SOFTSTARTER 130A PARA ACIONAMENTO DE MOTOR DE NO MÍNIMO 60CV 4P, BOTÃO LIGA/DESLIGA, SINALIZAÇÃO INDICANDO MOTOR LIGADO, BOTÃO DE EMERGÊNCIA. CONTACTOR DE BY-PASS INCORPORADO, CHAVE SELEÇÃO MANUAL/AUTOMÁTICO, MONITORAÇÃO VIA IHM DE: AMPERÍMETRO, VOLTÍMETRO, HORÍMETRO E COSSIMETRO, MONTADO EM CAIXA METÁLICA, COM MANOPLA NR 10, MONTAGEM INCLUSO. | D12: 1 | E12: CJ | F12: 16100 | G12: =ROUND(F12*D12*$I$9,2) -> 20680.45
C13: Mangote semi-flexivel
A14: 7.1.3 | B14: Cotação | C14: MANGOTE EM BORRACHA MANDRILADA SEM ARAME INTERNO FLANGEADA DE ACORDO COM NORMA ANSI B16.5 FULL FACE, SEMI FLEXÍVEL, COM ILHOS PARA FIXAÇAO DO CABO ELETRICO, DIÂMETRO Ø200, COM OS PARAFUSOS DE FIXAÇÃO. | D14: 50 | E14: M | F14: 2681.03 | G14: =ROUND(F14*D14*$I$9,2) -> 172189.15
C15: Cabos elétricos
A16: 7.1.4 | B16: 39264 | C16: CABO DE COBRE, MULTIPOLAR, FLEXÍVEL, ISOLAÇÃO EM HEPR, ANTICHAMA BWF-B, COBERTURA PVC-ST2, 3 CONDUTORES, 0,6/1 KV, SEÇÃO NOMINAL #35MM² | D16: 100 | E16: M | F16: 48.09 | G16: =ROUND(F16*D16*$I$9,2) -> 6177.16
A17: 7.1.5 | B17: 1019 | C17: CABO DE COBRE, FLEXÍVEL, ISOLAÇÃO EM PVC, ANTICHAMA BWF-B, COBERTURA PVC-ST1, 1 CONDUTOR, 0,6/1 KV, SEÇÃO NOMINAL #35MM² - VERDE | D17: 100 | E17: M | F17: 15.14 | G17: 1944.73
A18: 7.1.6 | B18: 08995/ORSE | C18: CABO DE COBRE, FLEXIVEL, CLASSE 4 OU 5, ISOLACAO EM PVC/A, ANTICHAMA BWF-B, COBERTURA PVC-ST1, ANTICHAMA BWF-B, 2 CONDUTORES, 0,6/1 KV, SECAO NOMINAL 1,5 MM2 | D18: 100 | E18: M | F18: 2.62 | G18: 336.54
A19: 7.1.7 | B19: 1577 | C19: TERMINAL DE COMPRESSÃO PARA CABO DE 35 MM² | D19: 24 | E19: Unid | F19: 1.41 | G19: 43.47
C20: Conjunto flutuador p/PEAD
A21: 7.1.8 | B21: Cotação | C21: CONJUNTO FLUTUADOR EM PEAD, PARA MANGOTE, COM CINTAS E PARAFUSOS PARA FIXAÇÃO DOS FLUTUADORES À LINHA DE RECALQUE. | D21: 6 | E21: CJ | F21: 4500 | G21: 34681.5
C22: Serviço de instalação e montagem
A23: 7.1.9 | B23: Cotação | C23: MOBILIZAÇÃO E DESMOBILIZAÇÃO,TRANSPORTE MONTAGEM DO CONJUNTO MOTOBOMBA, CCM DO MOTORE, CABOS ELÉTRICOS, MANGOTE FLEXIVEL E CONJUNTOS FLUTUADORES, INSTALAÇÃO DE TODOS OS EQUIPAMENTOS FORNECIDOS COM STARTUP. | D23: 1 | E23: CJ | F23: 21800 | G23: 28002.1
A24: 7.1.10 | B24: Cotação | C24: PROJETO EXECUTIVO | D24: 1 | E24: CJ | F24: 31684.8 | G24: 40699.13
H25: =UPPER(C25) -> 
A26: TOTAL ITEM 7.1 - Captação Flutuante | G26: =ROUND(SUM(G10:G24),2) -> 385292.38

Sheet Composição
C1: Ministério da Integração Nacional - MI
C2: Companhia de Desenvolvimento dos Vales do São Francisco e do Parnaíba
C3: 6ª Superintendência Regional
A5: OBJETO: | B5: Execução de obras e serviços de engenharia relativos à readequação da captação do sistema de abastecimento de água da sede do Município de Remanso, no estado da Bahia.
A6: Composições _Serviços
A7: EXECUÇÃO DE ENVELOPAMENTO DE TUBULAÇÃO EM CONCRETO SIMPLES,INCLUIDO PREPARO MECANICO, LANÇAMENTO E ADENSAMENTO. | G7: UND: m³
A8: Item 4.2 | B8: Cód. SINAPI | C8: Descrição | D8: Unidade | E8: Quantidade | F8: Custo Unit. | G8: Custo Total
A9: 4.2.1 | B9: INSUMO - 6111 | C9: SERVENTE | D9: H | E9: 10.86 | F9: 8.3 | G9: =ROUND(E9*F9,2) -> 90.14
A10: 4.2.2 | B10: INSUMO - 4750 | C10: PEDREIRO | D10: H | E10: 2.14 | F10: 14.06 | G10: 30.09
A11: 4.2.3 | B11: COMPOSIÇÃO | C11: AREIA GROSSA - DMT ATÉ 50Km | D11: M3 | E11: 0.742 | F11: =G23 -> 85.9 | G11: 63.74
A12: 4.2.4 | B12: INSUMO - 1379 | C12: CIMENTO PORTLAND COMPOSTO CP II - 32 | D12: KG | E12: 274.7405691 | F12: 0.51 | G12: 140.12
A13: 4.2.5 | B13: COMPOSIÇÃO | C13: PEDRA BRITADA N. 1 OU 19 MM - DMT ate 300Km | D13: m³ | E13: 0.85 | F13: =G28 -> 201.01 | G13: 170.86
A14: 4.2.6 | B14: SERVIÇO 5970 | C14: FORMA TABUA PARA CONCRETO EM FUNDACAO, C/ REAPROVEITAMENTO 2X. | D14: m² | E14: 4 | F14: 70.88 | G14: 283.52
F15: Total | G15: =SUM(G9:G14) -> 778.47
F17: Total geral (Sem BDI) | G17: =G15+G16 -> 778.47 | H17: =G17*1.2845 -> 999.944715
A18: AREIA GROSSA - DMT ate 50 Km | G18: UND: m³
A19: Item 4.2.3 | B19: Cód. SINAPI | C19: Descrição | D19: Unidade | E19: Quantidade | F19: Custo Unit. | G19: Custo Total
A20: 4.2.3.1 | B20: SINAPI 000367 | C20: AREIA GROSSA - POSTO JAZIDA / FORNECIMENTO (SEM FRETE) | D20: M3 | E20: 1 | F20: 62.9 | G20: =ROUND(E20*F20,2) -> 62.9
A21: 4.2.3.2 | B21: SERVIÇO 93596 | C21: TRANSPORTE COM CAMINHÃO BASCULANTE DE 10 M3, EM VIA URBANA PAVIMENTADA TXKM , DMT ACIMA DE 30 KM (UNIDADE: TONXKM). AF_04/2016 | D21: m³x Km | E21: 50 | F21: 0.46 | G21: =ROUND(E21*F21,2) -> 23
F23: Total geral (Sem BDI) | G23: =SUM(G20:G22) -> 85.9
A24: PEDRA BRITADA N. 1 OU 19 MM - DMT ate 300Km | G24: UND: m³
A25: Item 4.2.5 | B25: Cód. SINAPI | C25: Descrição | D25: Unidade | E25: Quantidade | F25: Custo Unit. | G25: Custo Total
A26: 4.2.5.1 | B26: SINAPI 004729 | C26: PEDRA BRITADA GRADUADA, CLASSIFICADA (POSTO PEDREIRA/FORNECEDOR, SEM FRETE) | D26: m³ | E26: 1 | F26: 63.01 | G26: =E26*F26 -> 63.01
A27: 4.2.5.2 | B27: SERVIÇO 93596 | C27: TRANSPORTE COM CAMINHÃO BASCULANTE DE 10 M3, EM VIA URBANA PAVIMENTADA TXKM , DMT ACIMA DE 30 KM (UNIDADE: TONXKM). AF_04/2016 | D27: m³x Km | E27: 300 | F27: 0.46 | G27: =ROUND(E27*F27,2) -> 138
F28: Total geral | G28: =SUM(G26:G27) -> 201.01
A30: ADMINISTRAÇÃO LOCAL E MANUTENÇÃO DE CANTEIRO DE OBRAS | G30: UND
A31: Item 1.1 | B31: Cód. SINAPI | C31: Descrição | D31: Unidade | E31: Quantidade | F31: Custo Unit. | G31: Custo Total
A32: 1.1.1 | B32: 40813 | C32: Engenheiro Civil | D32: mes | E32: 4 | F32: 15911.57 | G32: =F32*E32 -> 63646.28 | I32: =E32/6/30 -> 0.02222222222
A33: 1.1.2 | B33: 40939 | C33: Engenheiro Eletricista | D33: mes | E33: 2 | F33: 14589.33 | G33: 29178.66
A34: 1.1.3 | B34: 00041096 | C34: Vigia | D34: mes | E34: 8 | F34: 2518.36 | G34: 20146.88 | I34: =30*7*6 -> 1260
A35: 1.1.4 | C35: Comunicação (internet, telefone, rádios) | D35: mês | E35: 4 | F35: 1100 | G35: 4400
A36: 1.1.5 | C36: Aluguel casa | D36: mês | E36: 8 | F36: 800 | G36: 6400
A37: 1.1.6 | C37: PCMAT, PCMSO, PPRD | D37: mês | E37: 4 | F37: 50 | G37: 200
A38: 1.1.7 | C38: Epi´s | D38: mês | E38: 4 | F38: 563.151 | G38: 2252.604
A39: 1.1.8 | C39: Equipamentos de informática | D39: mês | E39: 4 | F39: 500 | G39: 2000
A40: 1.1.9 | C40: Moveis e utensílios | D40: mês | E40: 4 | F40: 580.5 | G40: 2322
A41: 1.1.10 | C41: Material de escritório/ limpeza | D41: mês | E41: 4 | F41: 653.3847 | G41: 2613.5388
A42: 1.1.11 | B42: 00041084 | C42: Servente (Limpeza) | D42: mes | E42: 4 | F42: 1453.55 | G42: 5814.2
A43: 1.1.12 | C43: Agua/ energia | D43: mês | E43: 8 | F43: 1170.24 | G43: 9361.92
A44: 1.1.13 | B44: 00040812 | C44: Auxiliar de Escritório | D44: mes | E44: 4 | F44: 2243.52 | G44: 8974.08
F46: Total | G46: =SUM(G32:G44) -> 157310.1628
F47: BDI (28,45%) | G47: =G46*0.2845 -> 44754.74132
F48: Total geral | G48: =SUM(G46:G47) -> 202064.9041
A50: Mobilização | G50: und
A51: Item 1.4 | B51: CÓDIGO: | C51: EQUIPAMENTOS DIVERSOS | D51: UNID. | E51: QUANT. | F51: PREÇO (R$) | G51: TOTAL (R$)
A52: 1.4.1 | B52: 89873 | C52: CAMINHÃO BASCULANTE 14 M3, COM CAVALO MECÂNICO DE CAPACIDADE MÁXIMA DE TRAÇÃO COMBINADO DE 36000 KG, POTÊNCIA 286 CV, INCLUSIVE SEMIREBOQUE COM CAÇAMBA METÁLICA - MANUTENÇÃO. AF_12/2014 | D52: h | E52: 50 | F52: 28.6 | G52: =E52*F52 -> 1430
A53: 1.4.2 | B53: 73335 | C53: CAMINHÃO TOCO, PBT 14.300 KG, CARGA ÚTIL MÁX. 9.710 KG, DIST. ENTRE EIXOS 3,56 M, POTÊNCIA 185 CV, INCLUSIVE CARROCERIA FIXA ABERTA DE MADEIRA P/ TRANSPORTE GERAL DE CARGA SECA, DIMEN. APROX. 2,50 X 6,50 X 0,50M - MANUTENÇÃO. AF_06/2014 | D53: h | E53: 50 | F53: 14.34 | G53: =E53*F53 -> 717
A54: 1.4.3 | B54: 91030 | C54: CAMINHÃO TRUCADO (C/ TERCEIRO EIXO) ELETRÔNICO - POTÊNCIA 231CV - PBT = 22000KG - DIST. ENTRE EIXOS 5170 MM - INCLUI CARROCERIA FIXA ABERTA DE MADEIRA - MATERIAIS NA OPERAÇÃO. AF_06/2015 | D54: h | E54: 100 | F54: 94.86 | G54: =E54*F54 -> 9486
A55: 1.4.4 | C55: PASSAGEM DE ÔNIBUS | D55: und. | E55: 25 | F55: 200 | G55: =E55*F55 -> 5000
C56: SUB-TOTAL | F56: R$ | G56: =SUM(G52:G55) -> 16633
B57: CÓDIGO: | C57: MÃO DE OBRA | D57: UNID. | E57: QUANT. | F57: PREÇO (R$) | G57: TOTAL (R$)
A58: 1.4.5 | B58: 88281 | C58: MOTORISTA DE BASCULANTE COM ENCARGOS COMPLEMENTARES | D58: h | E58: 50 | F58: 18.95 | G58: =E58*F58 -> 947.5
A59: 1.4.6 | B59: 88285 | C59: MOTORISTA DE VEÍCULO PESADO COM ENCARGOS COMPLEMENTARES | D59: h | E59: 150 | F59: 18.97 | G59: =E59*F59 -> 2845.5
C60: SUB- TOTAL | F60: R$ | G60: =SUM(G58:G59) -> 3793
B62: CUSTO DIRETO DO SERVIÇO | F62: R$ | G62: =SUM(G56,G60) -> 20426
B63: BDI | E63: 0.2845 | F63: R$ | G63: =G62*E63 -> 5811.197
B64: TOTAL GERAL | F64: R$ | G64: =G62+G63 -> 26237.197

Sheet Compos_Eletric
A1: COMPOSIÇÃO DE PREÇO UNITÁRIO - SAA REMANSO - SERVIÇOS ELÉTRICOS
B2: Mês/Ano de coleta dos preços SINAPI | C2: 2017-08-01
B3: Mês/Ano de coleta dos preços ORSE | C3: 2017-07-01
B4: Encargos sociais | C4: ='[1]Det_ Enc_ Soc_'!$F$49 -> 0.917
B5: BDI (Material) | C5: ='[1]BDI Materiais'!$D$26 -> 0.2099529532
B6: BDI (mão-de-obra) | C6: ='[1]BDI Serviços'!$D$26 -> 0.284532276
B9: COMPOSIÇÃO DE PREÇO UNITÁRIO | D9: ITEM: | E9: 1.1.1
A11: SERVIÇO: | B11: Fornecimento dos materiais e equipamentos para a interligação da rede de média tensão existente em 13.8KV e o ramal de entrada, o qual contempla extensão da rede de média tensão, cubículo de medição, disjuntor, chave seccionadora em 13.8KV e demais acessórios necessários. | E11: unidade : Unid
A12: EQUIPAMENTO
A13: CÓDIGO | B13: DESCRIÇÃO | C13: UNIDADE | D13: QUANT. | E13: P.UNIT. | F13: P.TOTAL
A15: SUB-TOTAL | F15: =SUM(F14:F14) -> 0
A16: MATERIAL
A17: CÓDIGO | B17: DESCRIÇÃO | C17: UNIDADE | D17: QUANT. | E17: P.UNIT. | F17: P.TOTAL
A18: 01866/ORSE | B18: Poste em concreto, Duplo T, altura 11m, carga nominal 600Kg | C18: unid. | D18: 1 | E18: 876.78 | F18: =ROUND(D18*E18,2) -> 876.78
A19: 01867/ORSE | B19: Poste em concreto, Duplo T, altura 11m, carga nominal 1000Kg | C19: unid. | D19: 1 | E19: 1412.59 | F19: =ROUND(D19*E19,2) -> 1412.59
A20: 25002 | B20: Cabo de alumínio nu com alma de aço, bitola 2AWG | C20: kg | D20: 25 | E20: 21.89 | F20: 547.25
A21: 03248/ORSE | B21: Cruzeta de concreto tipo T 2400mm 200 Kg | C21: unid. | D21: 6 | E21: 264 | F21: 1584
A22: 3406 | B22: Isolador polimérico de pino 15KV | C22: unid. | D22: 6 | E22: 25.5 | F22: 153
A23: 11837 | B23: Grampo linha viva de alumínio cabo principal (10-120mm2) derivação (10-70mm2) | C23: unid. | D23: 9 | E23: 33.86 | F23: 304.74
A24: 402 | B24: Gancho suspensão olhal em aço galvanizado, espessura 16mm, abertura 21mm | C24: unid. | D24: 9 | E24: 9.64 | F24: 86.76
A25: 417 | B25: Alça pre-formada de distribuição, em aço galvanizado, para cabo alumínio 25mm2 | C25: unid. | D25: 6 | E25: 2.45 | F25: 14.7
A26: 5047 | B26: Chave fusível de distribuição 15KV/100A | C26: unid. | D26: 3 | E26: 173.41 | F26: 520.23
A27: 10661/ORSE | B27: Elo fusível | C27: unid. | D27: 3 | E27: 7.92 | F27: 23.76
A28: 4276 | B28: Para-raios de distribuição 15KV / 5KA | C28: unid. | D28: 3 | E28: 190.78 | F28: 572.34
A29: 04353/ORSE | B29: Suporte para mufla | C29: unid. | D29: 4 | E29: 55 | F29: 220
A30: 4161 | B30: Mufla terminal primaria unipolar uso interno para cabo 35/120mm2 isolacao 15kv em epr - borracha de silicone | C30: unid. | D30: 4 | E30: 222.32 | F30: 889.28
A31: 430 | B31: Parafuso M16 (rosca máquina d=16mm)x125mm cab. quadrada - zincagem a fogo | C31: unid. | D31: 9 | E31: 4.38 | F31: 39.42
A32: 432 | B32: Parafuso M16 (rosca máquina d=16mm)x250mm cab. quadrada - zincagem a fogo | C32: unid. | D32: 15 | E32: 6.42 | F32: 96.3
A33: 11790 | B33: Parafuso M16 (rosca máquina d=16mm)x450mm cab. quadrada - zincagem a fogo | C33: unid. | D33: 12 | E33: 12.98 | F33: 155.76
A34: 421 | B34: Porca olhal aço galvanizado para parafuso diâmetro de 16mm | C34: unid. | D34: 72 | E34: 8.53 | F34: 614.16
A35: 379 | B35: Arruela quadrada galvanizada D=38mm esp = 3mm furo=18mm | C35: unid. | D35: 108 | E35: 0.58 | F35: 62.64
A36: 21132 | B36: Eletroduto em ferro galvanizado pesado Ø 4" | C36: m | D36: 6 | E36: 43.33 | F36: 259.98
A37: 2641 | B37: Luva para eletroduto em ferro galvanizado Ø 4" | C37: unid. | D37: 4 | E37: 10.72 | F37: 42.88
A38: 2621 | B38: Curva 90° para eletroduto em ferro galvanizado Ø 4" | C38: unid. | D38: 2 | E38: 60.9 | F38: 121.8
A39: 2628 | B39: Curva 135° para eletroduto em ferro galvanizado Ø 4" | C39: unid. | D39: 1 | E39: 86.2 | F39: 86.2
A40: 34643 | B40: Caixa de inspeção em polietileno para aterramento e para raios D=300mm | C40: unid. | D40: 4 | E40: 10.37 | F40: 41.48
A41: 3380 | B41: Haste de aterramento DN 5/8 "x3000mm, em aço revestido com camada de cobre eletrolítico, com conector tipo grampo | C41: unid. | D41: 4 | E41: 34.41 | F41: 137.64
A42: 11203/ORSE | B42: Solda exotérmica - cartucho | C42: unid. | D42: 6 | E42: 31 | F42: 186
A43: 09691/ORSE | B43: Solda exotérmica - molde | C43: unid. | D43: 2 | E43: 121.11 | F43: 242.22
A44: 867 | B44: Cabo de cobre nu 50mm2 | C44: m | D44: 70 | E44: 20.06 | F44: 1404.2
A45: 873 | B45: Cabo de cobre, blindado, isolação para 12/20KV, diametro de 50 mm² - tipo Voltalene XLPE fab. Prysmian ou similar | C45: m | D45: 80 | E45: 68.8 | F45: 5504
A46: 1577 | B46: Terminal de compressão para cabo de 35 mm² | C46: unid. | D46: 18 | E46: 1.41 | F46: 25.38
A47: 1578 | B47: Terminal de compressão para cabo de 50 mm² | C47: unid. | D47: 6 | E47: 2.44 | F47: 14.64
A48: 39693 | B48: Caixa Metálica para Instalação do Medidor - dim.: 1000x1000m - Padrão COELBA | C48: unid. | D48: 1 | E48: 1129 | F48: 1129
A49: 2683 | B49: Eletroduto em PVC rígido roscável de Ø 4" | C49: m | D49: 6 | E49: 24.81 | F49: 148.86
A50: 1895 | B50: Luva para eletroduto em PVC rígido roscável de Ø 4" | C50: unid. | D50: 4 | E50: 17.19 | F50: 68.76
A51: 1878 | B51: Curva 90° para eletroduto em PVC rígido roscável de Ø 4" | C51: unid. | D51: 2 | E51: 30.26 | F51: 60.52
A52: 39216 | B52: Arruela em alumínio, com rosca, para eletroduto de Ø 4" | C52: unid. | D52: 6 | E52: 5.2 | F52: 31.2
A53: 39182 | B53: Bucha em alumínio, com rosca, para eletroduto de Ø 4" | C53: unid. | D53: 6 | E53: 6.43 | F53: 38.58
A54: 4168 | B54: Mufla terminal primaria unipolar uso interno para cabo 35/120mm2 isolacao 15kv em epr - borracha de silicone | C54: unid. | D54: 3 | E54: 230.98 | F54: 692.94
A55: 09746/ORSE | B55: Cubículo trifásico, blindado, isolado a ar, aplicação ao tempo, classe de isolação 15 KV / 60 HZ, tensão suportável de curta duração a freqüência industrial de 35 KV, Tensão suportável de impulso de 95 KV, corrente de curta duração, 3s de 31,5 KA, corrente de pico á 50/60 Hz, 80/82 KA, corrente de corte em curto circuito 31,5 KA, corrente de fechamento em curto circuito á 50/60 Hz 80/82 KA, corrente de serviço nas barras 1.250 A , fabricado em chapa de aço carbono SAE1020, bitola 12 MSG, para estrutura de 3,35 mm, fechamento 2,6 mm, divisórias 2,6 mm, padrão metal clad; tampas trazeiras aparafusadas, portas frontais com fecho Cremona e dobradiças, venezianas com telas, olhais de içamento, tampa de despressurização na lateral, teto com declive para trás, compartimento acoplado, medindo 2.300 x 2.100 mm, pintado com tinta epóxi, processo eletrostático, cor interna e externa cinza munsell N6.5, grau de proteção externo IP-54, e interno IP-65, com entrada e saída em 13.8 KV, na parte inferior do cubículo, para manobra e proteção de subestação, e espaço para medição da concessionária de energia elétrica, montado com os equipamentos e materiais abaixo especificados. Esses cubículo serão subdivididos em três módulos, sendo eles: módulo 01 local onde será instalado o mediro da concessinária; módulo 02 local onde será instalado o disjuntor de entrada; módulo 03 local onde será instalada a chave seccionadora; esses módulos deverão estar interligados através de barramentos. | C55: unid. | D55: 1 | E55: 28096.36 | F55: 28096.36
A56: 09211/ORSE | B56: Disjuntor tripolar a vácuo, classe de tensão 15KV, tensão nominal em 13.8 KV, corrente nominal ajustável de 40 a 160A, execução extraível, capacidade de abertura de interrupção em 25 KA/NBI, c/ bobina de mínima em 220 VCA 60 HZ, e bobina de abertura, fechamento e motorização em 125 VCC c/ intertravamento KirK contatos auxiliares 4NAF. | C56: unid. | D56: 1 | E56: 28653.08 | F56: 28653.08
A57: 39474 | B57: Dipositivo DPS, classe II, 1polo, tensão máxima 385V, corrente máxima 30KA | C57: unid. | D57: 4 | E57: 116.46 | F57: 465.84
A58: 11211/ORSE | B58: Chave seccionadora trifasica, classe de tensão 15KV, tensão nominal em 13.8 KV, corrente nominal de 300 A, com fusivel de 25 KA, mecanismo de abertura e fechamento, intertravamento com o disjuntor do cubiculo | C58: unid. | D58: 1 | E58: 1970.67 | F58: 1970.67
A59: 11200/ORSE | B59: Fusivel HH, 15KV | C59: unid. | D59: 3 | E59: 118.66 | F59: 355.98
A60: 09193/ORSE | B60: Disparador trip capacitivo 220 VCA | C60: unid. | D60: 1 | E60: 2095.05 | F60: 2095.05
A61: 04495/ORSE | B61: Voltímetro digital alim; 125 VCC, dim 96 x 96 mm escala de 0-250V relação 13,8/0,115 KV | C61: unid. | D61: 1 | E61: 160 | F61: 160
A62: 11934/ORSE | B62: Amperímetro digital, alim; 125 VCC, dim 96 x 96 mm escala de 0-100/5a | C62: unid. | D62: 1 | E62: 171.66 | F62: 171.66
A63: 10216/ORSE | B63: Transformador de potencial encapsulado em resina de epóxi, classe de tensão 15KV relação de transformação 13.800 / 220-115 VCA, classe de exatidão 0,6P75, Potencia de 1.000 VA | C63: unid. | D63: 3 | E63: 2387.49 | F63: 7162.47
A64: 12391/ORSE | B64: Transformador de corrente encapsulado em resina de epóxi relação 200/5A classe de tensão 15KV tensão nominal 13.8KV classe de exatidão 0,6c12, classe de precisão 10B200 | C64: unid. | D64: 3 | E64: 249.58 | F64: 748.74
A65: 2370 | B65: Disjuntor termomagnético monofásico, curva C corrente nominal 10A ICC 10KA em 220K | C65: unid. | D65: 3 | E65: 10.95 | F65: 32.85
A66: 2392 | B66: Disjuntor termomagnético trifasico, curva C corrente nominal 20 A ICC 10KA em 220K | C66: unid. | D66: 3 | E66: 73.5 | F66: 220.5
A67: 08555/ORSE | B67: Relé para proteção de sub-estações microprocessado digital multifunção, função 37+46+47+48+49+50/51 + 51N+50BF+66, alimentação 125 VCC; | C67: unid. | D67: 1 | E67: 21387.34 | F67: 21387.34
A68: 09147/ORSE | B68: Multi medidor de grandezas elétricas, digital dim 96 x 96 mm trifásico em 220 Vca, corrente de 0 á 5 A, alimentação em 125 VCC, executa registro dos valores de fator de potencia tensão e corrente, potencia ativa, reativa e aparente, KVAR faltante e outros | C68: unid. | D68: 1 | E68: 2464.64 | F68: 2464.64
A69: 1623 | B69: Contator auxiliar 10A 4NA 125 VCC; | C69: unid. | D69: 3 | E69: 141.14 | F69: 423.42
A70: 1623 | B70: Contator auxiliar 10A 2NA + 2NF 125 Vcc; | C70: unid. | D70: 3 | E70: 141.14 | F70: 423.42
A71: 04855/ORSE | B71: Sinalizador luminoso, diâmetro de furação 30,5mm, equipado c/ lâmpada Led - AM | C71: unid. | D71: 1 | E71: 31.2 | F71: 31.2
A72: 04855/ORSE | B72: Sinalizador luminoso, diâmetro de furação 30,5mm, equipado c/ lâmpada Led - VD | C72: unid. | D72: 1 | E72: 31.2 | F72: 31.2
A73: 04855/ORSE | B73: Sinalizador luminoso, diâmetro de furação 30,5mm, equipado c/ lâmpada Led - VM | C73: unid. | D73: 1 | E73: 31.2 | F73: 31.2
A74: 04492/ORSE | B74: Chave comutadora de voltímetro | C74: unid. | D74: 1 | E74: 85.9 | F74: 85.9
A75: 04863/ORSE | B75: Borne 2,5 mm | C75: unid. | D75: 5 | E75: 4.5 | F75: 22.5
A76: 10325/ORSE | B76: Botão de abertura de emergencia, instalação na porta do painel | C76: unid. | D76: 1 | E76: 103.97 | F76: 103.97
A77: 1014 | B77: Cabo de cobre flexível, antichama, 750V, #2,5mm² - VM | C77: m | D77: 100 | E77: 1.01 | F77: 101
A78: 1014 | B78: Cabo de cobre flexível, antichama, 750V, #2,5mm² - PT | C78: m | D78: 400 | E78: 1.01 | F78: 404
A79: 1014 | B79: Cabo de cobre flexível, antichama, 750V, #2,5mm² - AZ | C79: m | D79: 200 | E79: 1.01 | F79: 202
A80: 1014 | B80: Cabo de cobre flexível, antichama, 750V, #2,5mm² - VD | C80: m | D80: 200 | E80: 1.01 | F80: 202
A81: 04666/ORSE | B81: Terminal preisolado tipo pino para cabo de 2,5 mm | C81: unid. | D81: 100 | E81: 0.35 | F81: 35
A82: 00181/ORSE | B82: Kit anilha numérica de 0 á 9 com 10 unidades de cada, para cabo de 2,5 mm | C82: unid. | D82: 100 | E82: 0.05 | F82: 5
A83: SUB-TOTAL | F83: =ROUND(SUM(F18:F82),2) -> 114496.98
A84: MÃO DE OBRA
A85: CÓDIGO | B85: DESCRIÇÃO | C85: UNIDADE | D85: QUANT. | E85: P.UNIT. | F85: P.TOTAL
A87: SUB-TOTAL | F87: =ROUND(SUM(F86:F86),2) -> 0
B89: A) CUSTO UNITÁRIO TOTAL - SEM BDI | F89: =ROUND(F15+F83+F87,2) -> 114496.98
B90: B) BDI (Material) | E90: ='[1]BDI Materiais'!$D$26 -> 0.2099529532 | F90: =ROUND(E90*(F83),2) -> 24038.98
B91: C) BDI (mão-de-obra) | E91: ='[1]BDI Serviços'!$D$26 -> 0.284532276 | F91: =ROUND((F87+F15)*E91,2) -> 0
B92: PREÇO UNITÁRIO TOTAL (A+B+C) | F92: =ROUND(SUM(F89:F91),2) -> 138535.96
B94: COMPOSIÇÃO DE PREÇO UNITÁRIO | D94: ITEM: | E94: 1.1.2
A96: SERVIÇO: | B96: Fornecimento dos materiais e equipamentos para a interligação do cubículo de média tensão em 13.8KV e o primário do transformador de 112,5KVA. | E96: unidade : Unid
A97: EQUIPAMENTO
A98: CÓDIGO | B98: DESCRIÇÃO | C98: UNIDADE | D98: QUANT. | E98: P.UNIT. | F98: P.TOTAL
A100: SUB-TOTAL | F100: =SUM(F99:F99) -> 0
A101: MATERIAL
A102: CÓDIGO | B102: DESCRIÇÃO | C102: UNIDADE | D102: QUANT. | E102: P.UNIT. | F102: P.TOTAL
A103: 21132 | B103: Eletroduto em ferro galvanizado pesado Ø 4" | C103: m | D103: 12 | E103: 43.33 | F103: =ROUND(D103*E103,2) -> 519.96
A104: 2641 | B104: Luva para eletroduto em ferro galvanizado Ø 4" | C104: unid. | D104: 6 | E104: 10.72 | F104: 64.32
A105: 2621 | B105: Curva 90° para eletroduto em ferro galvanizado Ø 4" | C105: unid. | D105: 2 | E105: 60.9 | F105: 121.8
A106: 2683 | B106: Eletroduto em PVC rígido roscável de Ø 4" | C106: m | D106: 6 | E106: 24.81 | F106: 148.86
A107: 1895 | B107: Luva para eletroduto em PVC rígido roscável de Ø 4" | C107: unid. | D107: 4 | E107: 17.19 | F107: 68.76
A108: 1878 | B108: Curva 90° para eletroduto em PVC rígido roscável de Ø 4" | C108: unid. | D108: 2 | E108: 30.26 | F108: 60.52
A109: 873 | B109: Cabo de cobre, blindado, isolação para 12/20KV, diametro de 50 mm² - tipo Voltalene XLPE fab. Prysmian ou similar | C109: m | D109: 11750 | E109: 68.8 | F109: 808400
A110: 03852/ORSE | B110: Mufla/Terminação termocontratil à frio isolação para 12/20KV, para cabo de 50 mm² | C110: unid. | D110: 30 | E110: 525 | F110: 15750
A111: 06528/ORSE | B111: Eletroduto corrugado flexivel Ø 5" em PEAD, para cabeamento subterraneo, tipo Kanaflex ou similar | C111: m | D111: 3750 | E111: 12.62 | F111: 47325
A112: 09153/ORSE | B112: Conexão / emenda kanaflex Ø 5" | C112: unid. | D112: 40 | E112: 17.52 | F112: 700.8
A113: 06510/ORSE | B113: Tampao/terminal 5" p/ dutos tp kanaflex | C113: unid. | D113: 20 | E113: 16.73 | F113: 334.6
A114: 34643 | B114: Caixa de inspeção em polietileno para aterramento e para raios D=300mm | C114: unid. | D114: 6 | E114: 10.37 | F114: 62.22
A115: 3380 | B115: Haste de aterramento DN 5/8 "x3000mm, em aço revestido com camada de cobre eletrolítico, com conector tipo grampo | C115: unid. | D115: 6 | E115: 34.41 | F115: 206.46
A116: 11203/ORSE | B116: Solda exotérmica - cartucho | C116: unid. | D116: 18 | E116: 31 | F116: 558
A117: 09691/ORSE | B117: Solda exotérmica - molde | C117: unid. | D117: 2 | E117: 121.11 | F117: 242.22
A118: 867 | B118: Cabo de cobre nu 50mm2 | C118: m | D118: 80 | E118: 20.06 | F118: 1604.8
A119: 1578 | B119: Terminal de compressão para cabo de 50 mm² | C119: unid. | D119: 8 | E119: 2.44 | F119: 19.52
A120: 7619 | B120: Transformador de distribuição trifasico, potencia de 112,5 KVA, relação de transformação de 13.800 / 380-220 VCA 60Z, tipo blindado, aplicação ao tempo, buchas primarias e secundarias, instaladas horizontalmente, protegidas através de caixa em chapa de aço, com tampas parafusadas. Com assessorios do tipo rele detector de gases, rele de nivel e reservatório de silicagel. | C120: unid. | D120: 1 | E120: 11120.64 | F120: 11120.64
A121: SUB-TOTAL | F121: =ROUND(SUM(F103:F120),2) -> 887308.48
A122: MÃO DE OBRA
A123: CÓDIGO | B123: DESCRIÇÃO | C123: UNIDADE | D123: QUANT. | E123: P.UNIT. | F123: P.TOTAL
A125: SUB-TOTAL | F125: =ROUND(SUM(F124:F124),2) -> 0
B127: A) CUSTO UNITÁRIO TOTAL - SEM BDI | F127: =ROUND(F100+F121+F125,2) -> 887308.48
B128: B) BDI (Material) | E128: ='[1]BDI Materiais'!$D$26 -> 0.2099529532 | F128: =ROUND(E128*(F121),2) -> 186293.04
B129: C) BDI (mão-de-obra) | E129: ='[1]BDI Serviços'!$D$26 -> 0.284532276 | F129: =ROUND((F125+F100)*E129,2) -> 0
B130: PREÇO UNITÁRIO TOTAL (A+B+C) | F130: =ROUND(SUM(F127:F129),2) -> 1073601.52
B132: COMPOSIÇÃO DE PREÇO UNITÁRIO | D132: ITEM: | E132: 2.1.3
A134: SERVIÇO: | B134: Fornecimento dos materiais e equipamentos para a interligação do secundário do transformador de 112,5KVA ao Painel Geral de Baixa Tensão (QGBT) e cojuntos motobombas - o qual contempla um painel modular com disjuntor principal, os acionamentos e proteções dos conjuntos motobombas e a interligação elétrica aos motores | E134: unidade : Unid
A135: EQUIPAMENTO
A136: CÓDIGO | B136: DESCRIÇÃO | C136: UNIDADE | D136: QUANT. | E136: P.UNIT. | F136: P.TOTAL
A138: SUB-TOTAL | F138: =SUM(F137:F137) -> 0
A139: MATERIAL
A140: CÓDIGO | B140: DESCRIÇÃO | C140: UNIDADE | D140: QUANT. | E140: P.UNIT. | F140: P.TOTAL
A141: 2683 | B141: Eletroduto em PVC rígido roscável de Ø 4" | C141: m | D141: 6 | E141: 24.81 | F141: =ROUND(D141*E141,2) -> 148.86
A142: 1895 | B142: Luva para eletroduto em PVC rígido roscável de Ø 4" | C142: unid. | D142: 4 | E142: 17.19 | F142: 68.76
A143: 1878 | B143: Curva 90° para eletroduto em PVC rígido roscável de Ø 4" | C143: unid. | D143: 2 | E143: 30.26 | F143: 60.52
A144: 998 | B144: Cabo de cobre, flexível, isolação em PVC, antichama BWF-B, cobertura PVC-ST1, 1 condutor, 0,6/1 KV, seção nominal #95mm² | C144: m | D144: 80 | E144: 39.72 | F144: 3177.6
A145: 1580 | B145: Terminal de compressão para cabo de 95 mm² | C145: unid. | D145: 8 | E145: 3.75 | F145: 30
A146: 1018 | B146: Cabo de cobre, flexível, isolação em PVC, antichama BWF-B, cobertura PVC-ST1, 1 condutor, 0,6/1 KV, seção nominal #50mm² | C146: m | D146: 20 | E146: 21.58 | F146: 431.6
A147: 1578 | B147: Terminal de compressão para cabo de 50 mm² | C147: unid. | D147: 2 | E147: 2.44 | F147: 4.88
A148: 10104/ORSE | B148: QGBT - Painel modular 1,00x1,0x0,40m, IP 54, a ser instalado no piso. O painel deverá possuir barramentos e demais acessórios necessários, conectando o disjuntor geral de 160A e os painéis CCM. | C148: unid. | D148: 1 | E148: 1478.52 | F148: 1478.52
A149: 34729 | B149: Disjuntor tripolar em caixa moldada tensão de serviço de 690 V, corrente nominal ajustável de 80 até 160 A, com unidade de disparo do tipo analise da qualidade de energia, proteção contra falta a terra e fuga a terra, tipo NS. | C149: unid. | D149: 1 | E149: 1100.83 | F149: 1100.83
A150: 39474 | B150: Dipositivo DPS, classe II, 1polo, tensão máxima 385V, corrente máxima 30KA | C150: unid. | D150: 4 | E150: 116.46 | F150: 465.84
A151: 04495/ORSE | B151: Voltímetro digital alim; 125 VCC, dim 96 x 96 mm escala de 0-500V / 5A | C151: unid. | D151: 1 | E151: 160 | F151: 160
A152: 11934/ORSE | B152: Amperímetro digital, alim; 125 VCC, dim 96 x 96 mm escala de 0-400/5a | C152: unid. | D152: 1 | E152: 171.66 | F152: 171.66
A153: 04497/ORSE | B153: Transformador de corrente encapsulado em resina de epóxi relação 200/5A, classe de tensão 660V | C153: unid. | D153: 3 | E153: 142.2 | F153: 426.6
A154: 2370 | B154: Disjuntor termomagnético monofásico, curva C corrente nominal 10A ICC 10KA em 220 K | C154: unid. | D154: 2 | E154: 10.95 | F154: 21.9
A155: 2392 | B155: Disjuntor termomagnético trifasico, curva C corrente nominal 20 A ICC 10KA em 220 K | C155: unid. | D155: 2 | E155: 73.5 | F155: 147
A156: 09147/ORSE | B156: Multi medidor de grandezas elétricas, digital dim 96 x 96 mm trifásico em 220 Vca, corrente de 0 á 5 A, alimentação em 125 VCC, executa registro dos valores de fator de potencia tensão e corrente, potencia ativa, reativa e aparente, KVAR faltante e outros | C156: unid. | D156: 1 | E156: 2464.64 | F156: 2464.64
A157: 1623 | B157: Contator auxiliar 10A 4NA 125 VCC; | C157: unid. | D157: 2 | E157: 141.14 | F157: 282.28
A158: 1623 | B158: Contator auxiliar 10A 2NA + 2NF 125 Vcc; | C158: unid. | D158: 2 | E158: 141.14 | F158: 282.28
A159: 04855/ORSE | B159: Sinalizador luminoso, diâmetro de furação 30,5mm, equipado c/ lâmpada Led - AM | C159: unid. | D159: 1 | E159: 31.2 | F159: 31.2
A160: 04855/ORSE | B160: Sinalizador luminoso, diâmetro de furação 30,5mm, equipado c/ lâmpada Led - VD | C160: unid. | D160: 1 | E160: 31.2 | F160: 31.2
A161: 04855/ORSE | B161: Sinalizador luminoso, diâmetro de furação 30,5mm, equipado c/ lâmpada Led - VM | C161: unid. | D161: 1 | E161: 31.2 | F161: 31.2
A162: 04492/ORSE | B162: Chave comutadora de voltímetro | C162: unid. | D162: 1 | E162: 85.9 | F162: 85.9
A163: 04863/ORSE | B163: Borne 2,5 mm | C163: unid. | D163: 5 | E163: 4.5 | F163: 22.5
A164: 10325/ORSE | B164: Botão de abertura de emergencia, instalação na porta do painel | C164: unid. | D164: 1 | E164: 103.97 | F164: 103.97
A165: 1014 | B165: Cabo de cobre flexível, antichama, 750V, #2,5mm² - VM | C165: m | D165: 100 | E165: 1.01 | F165: 101
A166: 1014 | B166: Cabo de cobre flexível, antichama, 750V, #2,5mm² - PT | C166: m | D166: 200 | E166: 1.01 | F166: 202
A167: 1014 | B167: Cabo de cobre flexível, antichama, 750V, #2,5mm² - AZ | C167: m | D167: 100 | E167: 1.01 | F167: 101
A168: 1014 | B168: Cabo de cobre flexível, antichama, 750V, #2,5mm² - VD | C168: m | D168: 100 | E168: 1.01 | F168: 101
A169: 04666/ORSE | B169: Terminal preisolado tipo pino para cabo de 2,5 mm | C169: unid. | D169: 100 | E169: 0.35 | F169: 35
A170: 00181/ORSE | B170: Kit anilha numérica de 0 á 9 com 10 unidades de cada, para cabo de 2,5 mm | C170: unid. | D170: 100 | E170: 0.05 | F170: 5
A171: 11450/ORSE | B171: Trilho DIM tipo régua 35mm com 2m de comprimento | C171: und. | D171: 1 | E171: 18.7 | F171: 18.7
A172: 39246 | B172: Eletroduto corrugado flexivel Ø 1.1/2" em PEAD, para cabeamento subterraneo, tipo Kanaflex ou similar | C172: m | D172: 100 | E172: 2.78 | F172: 278
A173: SUB-TOTAL | F173: =ROUND(SUM(F141:F172),2) -> 12071.44
A174: MÃO DE OBRA
A175: CÓDIGO | B175: DESCRIÇÃO | C175: UNIDADE | D175: QUANT. | E175: P.UNIT. | F175: P.TOTAL
A177: SUB-TOTAL | F177: =ROUND(SUM(F176:F176),2) -> 0
B179: A) CUSTO UNITÁRIO TOTAL - SEM BDI | F179: =ROUND(F138+F173+F177,2) -> 12071.44
B180: B) BDI (Material) | E180: ='[1]BDI Materiais'!$D$26 -> 0.2099529532 | F180: =ROUND(E180*(F173),2) -> 2534.43
B181: C) BDI (mão-de-obra) | E181: ='[1]BDI Serviços'!$D$26 -> 0.284532276 | F181: =ROUND((F177+F138)*E181,2) -> 0
B182: PREÇO UNITÁRIO TOTAL (A+B+C) | F182: =ROUND(SUM(F179:F181),2) -> 14605.87
B184: COMPOSIÇÃO DE PREÇO UNITÁRIO | D184: ITEM: | E184: 2.2.1
A186: SERVIÇO: | B186: Serviços de supervisão de montagem e instalação da extensão de rede de média tensão, cubículos, subestação em 13.8 KV e interligação ao CCM do conjunto motobomba, incluindo a operação asssistida por no mínimo 10 dias | E186: unidade : Unid
A187: EQUIPAMENTO
A188: CÓDIGO | B188: DESCRIÇÃO | C188: UNIDADE | D188: QUANT. | E188: P.UNIT. | F188: P.TOTAL
A190: SUB-TOTAL | F190: =SUM(F189:F189) -> 0
A191: MATERIAL
A192: CÓDIGO | B192: DESCRIÇÃO | C192: UNIDADE | D192: QUANT. | E192: P.UNIT. | F192: P.TOTAL
A194: SUB-TOTAL | F194: =ROUND(SUM(F193:F193),2) -> 0
A195: MÃO DE OBRA
A196: CÓDIGO | B196: DESCRIÇÃO | C196: UNIDADE | D196: QUANT. | E196: P.UNIT. | F196: P.TOTAL
A197: 2438 | B197: Técnico Eletrotécnico | C197: h/h | D197: 590 | E197: 21.55 | F197: =ROUND(D197*E197,2) -> 12714.5
A198: 2436 | B198: Eletricista | C198: h/h | D198: 1170 | E198: 14.06 | F198: 16450.2
A199: 247 | B199: Ajudante de Eletricista | C199: h/h | D199: 2350 | E199: 10.56 | F199: 24816
A200: SUB-TOTAL | F200: =ROUND(SUM(F197:F199),2) -> 53980.7
B202: A) CUSTO UNITÁRIO TOTAL - SEM BDI | F202: =ROUND(F190+F194+F200,2) -> 53980.7
B203: B) BDI (Material) | E203: ='[1]BDI Materiais'!$D$26 -> 0.2099529532 | F203: =ROUND(E203*(F194),2) -> 0
B204: C) BDI (mão-de-obra) | E204: ='[1]BDI Serviços'!$D$26 -> 0.284532276 | F204: =ROUND((F200+F190)*E204,2) -> 15359.25
B205: PREÇO UNITÁRIO TOTAL (A+B+C) | F205: =ROUND(SUM(F202:F204),2) -> 69339.95
B207: COMPOSIÇÃO DE PREÇO UNITÁRIO | D207: ITEM: | E207: 2.2.2
A209: SERVIÇO: | B209: Projeto executivo, com descrição e detalhamento do projeto elétrico extensão de rede de média tensão, de força, comando e proteção; diagrama unifilar de AT/BT; layout de montagem; folhas de dados dos componentes e memorial de cálculo | E209: unidade : Unid
A210: EQUIPAMENTO
A211: CÓDIGO | B211: DESCRIÇÃO | C211: UNIDADE | D211: QUANT. | E211: P.UNIT. | F211: P.TOTAL
A213: SUB-TOTAL | F213: =SUM(F212:F212) -> 0
A214: MATERIAL
A215: CÓDIGO | B215: DESCRIÇÃO | C215: UNIDADE | D215: QUANT. | E215: P.UNIT. | F215: P.TOTAL
A217: SUB-TOTAL | F217: =ROUND(SUM(F216:F216),2) -> 0
A218: MÃO DE OBRA
A219: CÓDIGO | B219: DESCRIÇÃO | C219: UNIDADE | D219: QUANT. | E219: P.UNIT. | F219: P.TOTAL
A220: 34783 | B220: Engenheiro Eletricista | C220: h/h | D220: 220 | E220: 83.33 | F220: =ROUND(D220*E220,2) -> 18332.6
A221: 2358 | B221: Desenhista Projetista | C221: h/h | D221: 220 | E221: 22.38 | F221: 4923.6
A222: SUB-TOTAL | F222: =ROUND(SUM(F220:F221),2) -> 23256.2
B224: A) CUSTO UNITÁRIO TOTAL - SEM BDI | F224: =ROUND(F213+F217+F222,2) -> 23256.2
B225: B) BDI (Material) | E225: ='[1]BDI Materiais'!$D$26 -> 0.2099529532 | F225: =ROUND(E225*(F217),2) -> 0
B226: C) BDI (mão-de-obra) | E226: ='[1]BDI Serviços'!$D$26 -> 0.284532276 | F226: =ROUND((F222+F213)*E226,2) -> 6617.14
... 19 more rows

Sheet Cronograma
A1: MINISTÉRIO DA INTEGRAÇÃO NACIONAL
A2: COMPANHIA DE DESENVOLVIMENTO DOS VALES DO SÃO FRANCISCO E DO PARNAÍBA
A3: 6ª SUPERINTENDÊNCIA REGIONAL
A5: OBJETO: Execução de obras e serviços de engenharia relativos à readequação da captação do sistema de abastecimento de água da sede do Município de Remanso, no estado da Bahia.
A7: CRONOGRAMA FÍSICO E FINANCEIRO
I8: =Serviços!H10 -> 360072.11
A9: ITEM | B9: DESCRIÇÃO DOS SERVIÇOS | C9: UNID. | D9: DIAS | I9: =I10+I11+I12 -> 360072.11 | J9: =J11+J12+J10 -> 159663.0609 | K9: =K11+K12+K10 -> 53783.2751 | L9: =L11+L12+L10 -> 94212.12632 | M9: =M11+M12+M10 -> 52413.64765
D10: 30 | E10: 60 | F10: 90 | G10: 120 | I10: =Serviços!H14 -> 52474.39 | J10: =I10/2 -> 26237.195 | M10: =I10/2 -> 26237.195
A11: LOTE I | I11: =I8-I12-I10 -> 105532.82 | J11: =I11 -> 105532.82
A12: 1 | B12: SERVIÇOS PRELIMINARES | C12: =Serviços!H10 -> 360072.11 | D12: =D13/$C$12 -> 0.4434196832 | E12: =E13/$C$12 -> 0.1493680671 | F12: =F13/$C$12 -> 0.2616479414 | G12: =G13/$C$12 -> 0.1455643083 | H12: Administração | I12: =Serviços!H11 -> 202064.9 | J12: =I12*J16 -> 27893.04593 | K12: =I12*K16 -> 53783.2751 | L12: =I12*L16 -> 94212.12632 | M12: =I12*M16 -> 26176.45265
D13: =J9 -> 159663.0609 | E13: =K9 -> 53783.2751 | F13: =L9 -> 94212.12632 | G13: =M9 -> 52413.64765
A14: 2 | B14: ASSENTAMENTO DA REDE ADUTORA E DA REDE ELÉTRICA ENTERRADA | C14: =Serviços!H45+Serviços!H58 -> 550700.46 | D14: =D15/$C$14 -> 0.2 | E14: =E15/$C$14 -> 0.4 | F14: 0.4 | G14: 0 | I14: =C27-I12 -> 3409961.53 | J14: =D15+D19+D23+D25+D17+D21 -> 338941.195 | K14: =E15+E19+E23+E25+E17+E21 -> 907623.734 | L14: 1589883.876 | M14: 415505.515
D15: =C14*0.2 -> 110140.092 | E15: =C14*0.4 -> 220280.184 | F15: =C14*0.4 -> 220280.184 | J15: =J14+J11+J10 -> 470711.21 | K15: =K14+K11+K10 -> 907623.734 | L15: =L14+L11+L10 -> 1589883.876 | M15: =M14+M11+M10 -> 441742.71
A16: 3 | B16: PROTEÇÃO DAS INSTALAÇÕES ELÉTRICAS E CASA DE COMANDO | C16: =Serviços!H15+Serviços!H41+Serviços!H23 -> 27950.45 | D16: =D17/$C$16 -> 0 | E16: =E17/$C$16 -> 0.5 | F16: 0.5 | G16: 0 | J16: =J15/$I$14 -> 0.1380400353 | K16: =K15/$I$14 -> 0.2661683207 | L16: =L15/$I$14 -> 0.4662468658 | M16: =M15/$I$14 -> 0.1295447782
D17: 0 | E17: =C16/2 -> 13975.225 | F17: =C16/2 -> 13975.225 | G17: =D16/2 -> 0
A18: 4 | B18: MATERIAIS (captação e adução) | C18: =Materias!I47 -> 930917.84 | D18: =D19/$C$18 -> 0.1 | E18: =E19/$C$18 -> 0.3 | F18: 0.5 | G18: 0.1
D19: =C18*0.1 -> 93091.784 | E19: =C18*0.3 -> 279275.352 | F19: =C18*0.5 -> 465458.92 | G19: =C18*0.1 -> 93091.784
A20: 5 | B20: CAPTAÇÃO FLUTUANTE - SERVIÇOS | C20: =Serviços!H60 -> 385292.38 | D20: =D21/$C$20 -> 0 | E20: =E21/$C$20 -> 0 | F20: 0.6 | G20: 0.4
F21: =C20*0.6 -> 231175.428 | G21: =C20*0.4 -> 154116.952
A22: 6 | B22: INSTALAÇÃOES ELÉTRICAS - FORNECIMENTO | C22: =Plan_Orc_Eletric!G14 -> 1226743.35 | D22: =D23/$C$22 -> 0.1 | E22: =E23/$C$22 -> 0.3 | F22: 0.5 | G22: 0.1
D23: =C22*0.1 -> 122674.335 | E23: =C22*0.3 -> 368023.005 | F23: =C22*0.5 -> 613371.675 | G23: =C22*0.1 -> 122674.335
A24: 7 | B24: INSTALAÇÃOES ELÉTRICAS - SERVIÇOS | C24: =Plan_Orc_Eletric!G19 -> 130349.84 | D24: =D25/$C$24 -> 0.1 | E24: =E25/$C$24 -> 0.2 | F24: 0.35 | G24: 0.35
D25: =C24*0.1 -> 13034.984 | E25: =C24*0.2 -> 26069.968 | F25: =C24*0.35 -> 45622.444 | G25: =C24*0.35 -> 45622.444
D26: =D27/$C$27 -> 0.1380400353 | E26: =E27/$C$27 -> 0.2661683207 | F26: =F27/$C$27 -> 0.4662468658 | G26: =G27/$C$27 -> 0.1295447782
B27: Total Geral | C27: =SUM(C12,C14,C16,C18,C20,C22,C24) -> 3612026.43 | D27: =SUM(D13+D15+D17+D19+D21+D23+D25) -> 498604.2559 | E27: =SUM(E13+E15+E17+E19+E21+E23+E25) -> 961407.0091 | F27: =SUM(F13+F15+F17+F19+F21+F23+F25) -> 1684096.002 | G27: =SUM(G13+G15+G17+G19+G21+G23+G25) -> 467919.1626
D28: =D26 -> 0.1380400353 | E28: =E26+D28 -> 0.404208356 | F28: 0.8704552218 | G28: 1
B29: Total Geral Acumulado | C29: =D27+E27+F27+G27 -> 3612026.43 | D29: =D27 -> 498604.2559 | E29: 1460011.265 | F29: 3144107.267 | G29: 3612026.43

Sheet Det_Encarg Sociais
B1: Ministério da Integração Nacional - MI
B2: Companhia de Desenvolvimento dos Vales do São Francisco e do Parnaíba
B3: 6ª Superintendência Regional
A5: DETALHAMENTO DOS ENCARGOS SOCIAIS
A9: DESCRIÇÃO | F9: Horista | G9: Mensalista
F10: % | G10: %
A11: A | B11: ENCARGOS SOCIAIS BÁSICOS
A12: A1 | B12: INSS - Previdência Social | F12: 0 | G12: 0
A13: A2 | B13: SESI - Serviço Social da Indústira | F13: 0.015 | G13: 0.015
A14: A3 | B14: SENAI - Serviço Nacional de Aprendizagem Industria | F14: 0.01 | G14: 0.01
A15: A4 | B15: INCRA - Instituto Nacional de Colonização e Reforma Agrária | F15: 0.002 | G15: 0.002
A16: A5 | B16: SEBRAE - Serviço de Apoio a Pequena e Média Empresa | F16: 0.006 | G16: 0.006
A17: A6 | B17: Salário Educação | F17: 0.025 | G17: 0.025
A18: A7 | B18: Seguro contra os acidentes de trabalho | F18: 0.03 | G18: 0.03
A19: A8 | B19: FGTS - Fundo de Garantia por Tempo de Serviço | F19: 0.08 | G19: 0.08
A20: A9 | B20: SECONCI - Serviço Social da Indústria da Construção e do Mobiliário | F20: 0 | G20: 0
A21: SUBTOTAL DE "A" | F21: =ROUND(SUM(F12:F20),4) -> 0.168 | G21: =ROUND(SUM(G12:G20),4) -> 0.168
A23: B | B23: ENCARGOS SOCIAIS QUE RECEBEM INCIDÊNCIA DE "A"
A24: B1 | B24: Repouso Semanal e feriados | F24: 0.1799 | G24: 0
A25: B2 | B25: Feriados | F25: 0.0397 | G25: 0
A26: B3 | B26: Auxílio enfermidade | F26: 0.0092 | G26: 0.0069
A27: B4 | B27: 13º Salário | F27: 0.1109 | G27: 0.0833
A28: B5 | B28: Licença paternidade | F28: 0.0009 | G28: 0.0006
A29: B6 | B29: Faltas justificadas | F29: 0.0074 | G29: 0.0056
A30: B7 | B30: Dias de Chuva | F30: 0.0208 | G30: 0
A31: B8 | B31: Auxílio acidente de trabalho | F31: 0.0013 | G31: 0.0009
A32: B9 | B32: Férias gozadas | F32: 0.1207 | G32: 0.0907
A33: B10 | B33: Salário maternidade | F33: 0.0003 | G33: 0.0002
A34: SUBTOTAL DE "B" | F34: =ROUND(SUM(F24:F33),4) -> 0.4911 | G34: =ROUND(SUM(G24:G33),4) -> 0.1882
A36: C | B36: ENCARGOS SOCIAIS QUE NÃO RECEBEM INCIDÊNCIA DE "A"
A37: C1 | B37: Aviso prévio indenizado | F37: 0.0786 | G37: 0.0591
A38: C2 | B38: Aviso prévio trabalhado | F38: 0.0041 | G38: 0.0031
A39: C3 | B39: Férias indenizadas | F39: 0.0265 | G39: 0.0199
A40: C4 | B40: Depósito rescisão sem justa causa | F40: 0.0526 | G40: 0.0395
A41: C5 | B41: Indenização adicional | F41: 0.0066 | G41: 0.005
A42: SUBTOTAL DE "C" | F42: =ROUND(SUM(F37:F41),4) -> 0.1684 | G42: =ROUND(SUM(G37:G41),4) -> 0.1266
A44: D | B44: REINCIDÊNCIAS
A45: D1 | B45: Reincidência de Grupo "A" sobre Grupo "B" | F45: 0.0825 | G45: 0.0316
A46: D2 | B46: Reincidência de Grupo "A" sobre Aviso Prévio Trabalhado e reincidência do FGTS sobre Aviso Prévio Indenizado | F46: 0.007 | G46: 0.0052
A47: SUBTOTAL DE "D" | F47: =SUM(F45:F46) -> 0.0895 | G47: =SUM(G45:G46) -> 0.0368
A49: TOTAIS DE ENCARGOS SOCIAIS | F49: =ROUND(F21+F34+F42+F47,4) -> 0.917 | G49: =ROUND(G21+G34+G42+G47,4) -> 0.5196

Sheet BDI Serviços
C1: Ministério da Integração Nacional - MI
C2: Companhia de Desenvolvimento dos Vales do São Francisco e do Parnaíba
C3: 6ª Superintendência Regional
A6: DETALHAMENTO DO BDI - SERVIÇOS
A8: Item | B8: Descrição dos serviços | D8: Preço de Venda (%)
A10: 1 | B10: Administração Central (A) | D10: 0.045
A12: 2 | B12: Impostos e Taxas (I) | D12: =SUM(D13:D16) -> 0.1015
A13: 2.1 | B13: ISS | D13: 0.02
A14: 2.2 | B14: PIS | D14: 0.0065
A15: 2.3 | B15: Cofins | D15: 0.03
A16: 2.4 | B16: CPRB (Contribuição Previdenciária sobre a Receita Bruta) | D16: 0.045
A18: 3 | B18: Taxa de Risco (R) | D18: 0.012
A20: 4 | B20: Seguros e Garantias (S + G) | D20: 0.006
A22: 5 | B22: Despesas Financeiras (F) | D22: 0.01
A24: 6 | B24: Lucro (L) | D24: 0.075
B26: BDI (%) | D26: =(((1+$D$10+$D$18+$D$20)*(1+$D$22)*(1+$D$24))/(1-$D$12))-1 -> 0.284532276

Sheet BDI Materiais
C1: Ministério da Integração Nacional - MI
C2: Companhia de Desenvolvimento dos Vales do São Francisco e do Parnaíba
C3: 6ª Superintendência Regional
A6: DETALHAMENTO DO BDI - MATERIAIS
A8: Item | B8: Descrição dos serviços | D8: Preço de Venda (%)
A10: 1 | B10: Administração Central (A) | D10: 0.035
A12: 2 | B12: Impostos e Taxas (I) | D12: =SUM(D13:D16) -> 0.0815
A13: 2.1 | B13: ISS | D13: 0
A14: 2.2 | B14: PIS | D14: 0.0065
A15: 2.3 | B15: Cofins | D15: 0.03
A16: 2.4 | B16: CPRB (Contribuição Previdenciária sobre a Receita Bruta) | D16: 0.045
A18: 3 | B18: Taxa de Risco (R) | D18: 0.0085
A20: 4 | B20: Seguros e Garantias (S + G) | D20: 0.006
A22: 5 | B22: Despesas Financeiras (F) | D22: 0.0085
A24: 6 | B24: Lucro (L) | D24: 0.05
B26: BDI (%) | D26: =(((1+$D$10+$D$18+$D$20)*(1+$D$22)*(1+$D$24))/(1-$D$12))-1 -> 0.2099529532

Sheet Ancoragem
B2: 1.5 - BLOCO DE ANCORAGEN
B3: 1.5.1 - ADUTORA DE ÁGUA BRUTA
B4: Estaca | C4: 222
B5: Curva | D5: 11.15 | E5: °
B6: Diâmetro interno do tubo | D6: 300 | E6: mm
B7: Tipo | D7: PBA
B8: Diâmetro externo do tubo | D8: 0.326 | E8: m
B9: Altura | D9: =D8+0.15 -> 0.476 | E9: m
B10: Sen α/2 | D10: =SIN(RADIANS(D5)/2) -> 0.09714864061
B11: P | D11: 31 | E11: m
B12: S | D12: =(PI()*D8^2)/4 -> 0.08346897521 | E12: m²
B13: R' | D13: =ABS(2*D10*D11*D12) -> 0.5027516435 | E13: tf
B14: tgφ | D14: 0.4
B15: Peso especifico do concreto | D15: 2.4 | E15: tf
B16: Volume do concreto | D16: =(D13*D9*1.5)/(D14*2.4) -> 0.3739215348 | E16: m³ | F16: =D16*2 -> 0.7478430696
B18: Estaca | C18: 45 + 14,616
B19: Curva | D19: 11.15 | E19: °
B20: Diâmetro interno do tubo | D20: 300 | E20: mm
B21: Tipo | D21: PBA
B22: Diâmetro externo do tubo | D22: 0.326 | E22: m
B23: Altura | D23: =D22+0.15 -> 0.476 | E23: m
B24: Sen α/2 | D24: =SIN(RADIANS(D19)/2) -> 0.09714864061
B25: P | D25: 31 | E25: m
B26: S | D26: =(PI()*D22^2)/4 -> 0.08346897521 | E26: m²
B27: R' | D27: =ABS(2*D24*D25*D26) -> 0.5027516435 | E27: tf
B28: tgφ | D28: 0.4
B29: Peso especifico do concreto | D29: 2.4 | E29: tf
B30: Volume do concreto | D30: =(D27*D23*1.5)/(D28*2.4) -> 0.3739215348 | E30: m³ | F30: =D30*2 -> 0.7478430696
F32: =SUM(F16,F30) -> 1.495686139 | G32: =F32*1.2 -> 1.794823367
B35: Estaca | C35: 227
B36: Curva | D36: 45 | E36: °
B37: Diâmetro interno do tubo | D37: 300 | E37: mm
B38: Tipo | D38: PBA
B39: Diâmetro externo do tubo | D39: 0.326 | E39: m
B40: Altura | D40: =D39+0.15 -> 0.476 | E40: m
B41: Sen α/2 | D41: =SIN(RADIANS(D36)/2) -> 0.3826834324
B42: P | D42: 31 | E42: m
B43: S | D43: =(PI()*D39^2)/4 -> 0.08346897521 | E43: m²
B44: R' | D44: =ABS(2*D41*D42*D43) -> 1.980416024 | E44: tf
B45: tgφ | D45: 0.4
B46: Peso especifico do concreto | D46: 2.4 | E46: tf
B47: Volume do concreto | D47: =(D44*D40*1.5)/(D45*2.4) -> 1.472934418 | E47: m³ | F47: =D47*4 -> 5.89173767
F49: =SUM(F33,F47) -> 5.89173767 | G49: =F49*1.2 -> 7.070085205
B51: Estaca
B52: Curva | D52: 90 | E52: °
B53: Diâmetro interno do tubo | D53: 300 | E53: mm
B54: Tipo | D54: PBA
B55: Diâmetro externo do tubo | D55: 0.326 | E55: m
B56: Altura | D56: =D55+0.15 -> 0.476 | E56: m
B57: Sen α/2 | D57: =SIN(RADIANS(D52)/2) -> 0.7071067812
B58: P | D58: 31 | E58: m
B59: S | D59: =(PI()*D55^2)/4 -> 0.08346897521 | E59: m²
B60: R' | D60: =ABS(2*D57*D58*D59) -> 3.65933166 | E60: tf
B61: tgφ | D61: 0.4
B62: Peso especifico do concreto | D62: 2.4 | E62: tf
B63: Volume do concreto | D63: =(D60*D56*1.5)/(D61*2.4) -> 2.721627922 | E63: m³ | F63: =D63*5 -> 13.60813961
F65: =SUM(F49,F63) -> 19.49987728 | G65: =F65*1.2 -> 23.39985274
B67: Estaca
B68: Curva | D68: 90 | E68: °
B69: Diâmetro interno do tubo | D69: 300 | E69: mm
B70: Tipo | D70: PBA
B71: Diâmetro externo do tubo | D71: 0.326 | E71: m
B72: Altura | D72: =D71+0.15 -> 0.476 | E72: m
B73: Sen α/2 | D73: =SIN(RADIANS(D68)/2) -> 0.7071067812
B74: P | D74: 31 | E74: m
B75: S | D75: =(PI()*D71^2)/4 -> 0.08346897521 | E75: m²
B76: R' | D76: =ABS(2*D73*D74*D75) -> 3.65933166 | E76: tf
B77: tgφ | D77: 0.4
B78: Peso especifico do concreto | D78: 2.4 | E78: tf
B79: Volume do concreto | D79: =(D76*D72*1.5)/(D77*2.4) -> 2.721627922 | E79: m³ | F79: =D79*5 -> 13.60813961
F81: =SUM(F79,F63,F47,F30,F16) -> 34.60370303 | G81: =F81*1.2 -> 41.52444364

Sheet Quantitativos
B2: Eletroduto Diâmetro 0,10m -
B3: Envelopamento com concreto | E3: Unid.
B4: Vala | D4: comprim. | E4: m | F4: 25
D5: Largura | E5: m | F5: 0.4
D6: Altura | E6: m | F6: 0.4
D7: Vol. Escavado | E7: m3 | F7: =F6*F5*F4*1.05 -> 4.2
D8: Vol. Eletroduto corrugado 0,10m | E8: m3 | F8: =((3.14*(0.1)*0.1)/4)*F4 -> 0.19625
D9: Vol. Envelopamento | E9: m3 | F9: =F7-F8 -> 4.00375
B11: Escavaçã mecânica para adutora
B12: Tubulação Diâmetro 0,30m -
D13: comprim. | E13: m | F13: 4700
D14: Largura | E14: m | F14: 0.8
D15: Altura | E15: m | F15: 1.2
D16: Vol. Escavado | E16: m3 | F16: =F15*F14*F13 -> 4512
D17: Vol. Tubo | E17: m3 | F17: =(3.14*0.3*0.3)/4*F13 -> 332.055
D18: Reaterro | E18: m3 | F18: =(F16-F17-F19)*1.05 -> 3994.14225
D19: Colchão de areia | E19: m3 | F19: =F14*0.1*F13 -> 376
D20: Vol. Escavado 1a | E20: m3 | F20: =F16*0.818 -> 3690.816
D21: Vol. Escavado 2a | E21: m3 | F21: =F16*0.182 -> 821.184
D22: Vol. Escavado 3a | E22: m3 | F22: =F21*0.5 -> 410.592
B23: Escavaçã mecânica para rede elétrica
B24: Tubulação Diâmetro 0,10m -
D25: comprim. | E25: m | F25: 4000
D26: Largura | E26: m | F26: 0.6
D27: Altura | E27: m | F27: 1.2
D28: Vol. Escavado | E28: m3 | F28: =F27*F26*F25 -> 2880
D29: Volume tubo | E29: m3 | F29: =(3.14*0.1*0.1)/4*F25 -> 31.4
D30: Reaterro | E30: m3 | F30: =(F28-F29-F31)*1.05 -> 2739.03
D31: Colchão de areia | E31: m3 | F31: =F26*0.1*F25 -> 240
D32: Vol. Escavado 1a | E32: m3 | F32: =F28*0.818 -> 2355.84
D33: Vol. Escavado 2a | E33: m3 | F33: =F28*0.181 -> 521.28
D34: Vol. Escavado 3a | E34: m3 | F34: =F33*0.5 -> 260.64
D35: Expurgo | E35: m3 | F35: =F16+F28-F18-F30 -> 658.82775
B37: Ancoragem | F37: 42
B41: Proteção dos equipamentos no molhe cerca
D42: Largura A | E42: m | F42: 4
D43: Largura B | E43: m | F43: 6
D44: Área | E44: m2 | F44: =F42*F43 -> 24
D45: Perímetro | E45: m | F45: 20
D46: Vol lastro | E46: m3 | F46: =F44*0.05*1.05 -> 1.26
D47: Vol concreto | E47: m3 | F47: =F44*0.1*1.05 -> 2.52
D48: Escavação | E48: m3 | F48: =F44*0.3 -> 7.2
D49: Reaterro | E49: m3 | F49: =F44*0.2 -> 4.8
B51: Proteção dos equipamentos no cais pedra argamassada e bloco de concreto
D52: Largura A | E52: m | F52: 3
D53: Largura B | E53: m | F53: 3.5
D54: Altura | E54: m | F54: 2.6
D55: Área piso | E55: m2 | F55: =F52*F53 -> 10.5
D56: Perímetro | E56: m | F56: =2*F52+2*F53 -> 13
D57: Área das paredes | E57: m2 | F57: =2*F52*F54+2*F53*F54-F67-F68 -> 30.14
D58: Vol lastro | E58: m3 | F58: =F55*0.05*1.05+F56*0.05*0.5 -> 0.87625
D59: Vol concreto | E59: m3 | F59: =F55*0.1*1.05 -> 1.1025
D60: escavação | E60: m3 | F60: =F55*0.55+F69*0.35 +F56*0.5*0.85 -> 13.925
D61: Reaterro | E61: m3 | F61: =F55*0.4+F69*0.2+F56*0.2*0.5+F56*0.1*0.6 -> 7.78
D62: fundação (pedra argamassada | E62: m3 | F62: =0.4*F56*0.65 -> 3.38
D63: Cinta de amarração | E63: m | F63: =F56 -> 13
D64: chapisco | E64: m2 | F64: =F57*2+0.2*12*2 -> 65.08
D65: reboco | E65: m2 | F65: =F57*2+0.2*12*2 -> 65.08
D66: pintura | E66: m2 | F66: =F57*2+0.2*12*2 -> 65.08
D67: portão | E67: m2 | F67: =1.4*2.1 -> 2.94
D68: Cobogó | E68: m2 | F68: =3*0.6*0.4 -> 0.72
D69: calçada | E69: m2 | F69: =2*0.5*3.5+2*0.5*4 -> 7.5
D70: Vol. Concreto Calçada | E70: m3 | F70: =F69*0.06 -> 0.45
D71: Laje pre moldada | E71: m2 | F71: =3*3.6 -> 10.8
D72: Barras de 10 mm | E72: unid | F72: 6
D73: verga
D76: Sondagem realizada a trado
D77: Ponto | E77: Profundidade (m) | F77: Coordenadas | H77: Material
F78: Longitude | G78: Latitude
D79: P11 | E79: 1 | F79: 821180.758 | G79: 8930604.447 | H79: Arenoso
D80: P12 | E80: 1 | F80: 821156.663 | G80: 8930701.563 | H80: Arenoso
D81: P13 | E81: 1 | F81: 821079.881 | G81: 8931011.038 | H81: Arenoso
D82: P14 | E82: 0.9 | F82: 820946.705 | G82: 8931547.825 | H82: Arenoso
D83: P15 | E83: 0.9 | F83: 820722.582 | G83: 8932451.176 | H83: Arenoso

Sheet Plan1
